Cogmind - Beta 15 *** ADVENTURER MODE // 2025.10.17 @ 09:12:16 // Winter2019/RPGLIKE Player: Gallgagger Result: Self-destructed Performance ------------- Evolutions (8) 4000 Regions Visited (26) 5200 Robots Destroyed (930) 4650 Value Destroyed (46501) 46501 Prototype IDs (156) 3120 Alien Tech Used (1) 200 Bonus (19582) 19582 TOTAL SCORE: 83253 Bonus ------- Triggered High Security 500 High Alert Combat Kills 14874 Follower Combat Kills 2222 Entered Garrisons 200 Entered DSFs 500 Aligned with FarCom 300 Hacked Protovariant 1000 Scanned by Researcher 500 Friendly Fire -514 Cogmind --------- Core Integrity 282/700 Matter 300/300 Energy 1608/1840 System Corruption 10% Temperature Cool (0) Movement Flying (15) Location -2/Protoforge Parts ------- > --- POWER (2) -------- Concept Zero-point Core Concept Zero-point Core > --- PROPULSION (5) --- Experimental Q-thruster Experimental Biomechanical Wings Experimental Surge Thruster Experimental Surge Thruster Concept Fieldthrust Drive > --- UTILITY (12) ----- Advanced Power Amplifier Concept Phasing Heat Sink Superbattery Quantum Shading Machine Experimental Core Analyzer Improved Armor Integrity Analyzer Improved Particle Accelerator Experimental Weapon Cycler Graphene Brace Experimental Focal Shield Concept Beam Splitter Advanced Hardlight Generator > --- WEAPON (4) ------- Concept Variable Chargecaster Concept Variable Chargecaster Improved Plasma Cutter > --- INVENTORY (4) ---- Protomatter-70 Crosscalibrator Subatomic Replicator CPS Tube (1) Peak State ------------ > --- POWER ------------ Concept Zero-point Core Concept Zero-point Core > --- PROPULSION ------- Experimental Q-thruster Experimental Biomechanical Wings Experimental Surge Thruster Experimental Surge Thruster Concept Fieldthrust Drive > --- UTILITY ---------- Advanced Power Amplifier Experimental Cooling System Superbattery Quantum Shading Machine Experimental Core Analyzer Improved Armor Integrity Analyzer Improved Particle Accelerator Experimental Weapon Cycler Experimental Transmission Jammer Experimental Focal Shield Concept Beam Splitter Advanced Hardlight Generator > --- WEAPON ----------- Zionite Phaser-S Concept Variable Chargecaster Concept Variable Chargecaster Improved Plasma Cutter > --- INVENTORY -------- Protomatter Crosscalibrator Subatomic Replicator CPS Tube [Rating: 229] Favorites ----------- Power Zionite Light DM Reactor Engine Light Angular Momentum Engine Power Core Light Fission Core Reactor Zionite Light DM Reactor Propulsion Experimental Q-thruster Treads Advanced Treads Wheel Wheel Flight Unit Experimental Q-thruster Utility Hardened Light Armor Plating Device Advanced Weapon Cycler Storage Superbattery Processor Experimental Core Analyzer Protection Hardened Light Armor Plating Weapon Heavy Assault Rifle Energy Gun Heavy Particle Gun Energy Cannon Heavy Particle Cannon Ballistic Gun Heavy Assault Rifle Special Weapon Improved Plasma Cutter Slashing Weapon Plasma Sword Special Melee Weapon Datajack Build | -11 -10 -10 -9 -9 -9 -8 -8 -8 -8 -8 -6 -6 -6 -6 -6 -5 -5 -5 -5 -5 -4 -3 -3 -2 -2 -2 ------- Run | Yrd Mat Min Mat Min Exi Min Mat Sto Rec Scr Fac Low Low Zio Dee Pro Fac Gar Fac DSF Fac Res Qua Res Tes Frg Slots Evolved 19 | 4 4 1 2 . . . 2 . 1 . 2 . . . . 1 . . . . . 1 . 1 . . Power 1 | 1 . . . . . . . . . . . . . . . . . . . . . . . . . . Propulsion 4 | 1 1 . 1 . . . . . . . 1 . . . . . . . . . . . . . . . Utility 11 | 1 2 1 . . . . 2 . 1 . 1 . . . . 1 . . . . . 1 . 1 . . Weapon 3 | 1 1 . 1 . . . . . . . . . . . . . . . . . . . . . . . Parts Attached 163 | 8 11 1 12 2 9 3 11 3 3 10 17 . 1 1 10 1 7 . . . 4 4 5 9 10 21 Power 17 | 2 1 . 4 1 2 2 . . . . 1 . . . 2 . . . . . . . . . . 2 Engine 9 | 2 . . 3 1 1 2 . . . . . . . . . . . . . . . . . . . . Core 6 | . 1 . 1 . 1 . . . . . 1 . . . . . . . . . . . . . . 2 Reactor 2 | . . . . . . . . . . . . . . . 2 . . . . . . . . . . . Propulsion 31 | 2 4 . 4 . 1 . . . . . 6 . . . . . 6 . . . . . . 1 1 6 Treads 7 | . 3 . 4 . . . . . . . . . . . . . . . . . . . . . . . Leg . | . . . . . . . . . . . . . . . . . . . . . . . . . . . Wheel 3 | 2 1 . . . . . . . . . . . . . . . . . . . . . . . . . Hover . | . . . . . . . . . . . . . . . . . . . . . . . . . . . Flight 21 | . . . . . 1 . . . . . 6 . . . . . 6 . . . . . . 1 1 6 Utility 66 | 2 3 1 1 1 6 . 3 . 2 7 3 . . 1 4 1 1 . . . 3 3 4 5 5 10 Device 48 | 2 . . 1 1 3 . 3 . 2 4 2 . . 1 2 1 1 . . . 2 3 3 5 4 8 Storage 1 | . . . . . 1 . . . . . . . . . . . . . . . . . . . . . Processor 9 | . . . . . 2 . . . . 1 1 . . . . . . . . . 1 . 1 . 1 2 Hackware . | . . . . . . . . . . . . . . . . . . . . . . . . . . . Protection 8 | . 3 1 . . . . . . . 2 . . . . 2 . . . . . . . . . . . Artifact . | . . . . . . . . . . . . . . . . . . . . . . . . . . . Weapon 49 | 2 3 . 3 . . 1 8 3 1 3 7 . 1 . 4 . . . . . 1 1 1 3 4 3 Energy Gun 26 | . . . . . . 1 6 2 1 . 3 . . . 4 . . . . . 1 1 . 3 1 3 Energy Cannon 6 | . . . . . . . 1 1 . . 1 . . . . . . . . . . . 1 . 2 . Ballistic Gun 9 | 2 3 . 2 . . . 1 . . . . . . . . . . . . . . . . . 1 . Ballistic Cannon . | . . . . . . . . . . . . . . . . . . . . . . . . . . . Launcher . | . . . . . . . . . . . . . . . . . . . . . . . . . . . Special Weapon 6 | . . . . . . . . . . 3 2 . 1 . . . . . . . . . . . . . Impact Weapon . | . . . . . . . . . . . . . . . . . . . . . . . . . . . Slashing Weapon 1 | . . . . . . . . . . . 1 . . . . . . . . . . . . . . . Piercing Weapon . | . . . . . . . . . . . . . . . . . . . . . . . . . . . Special Melee Weapon 1 | . . . 1 . . . . . . . . . . . . . . . . . . . . . . . Unidentified Prototypes 58 | . . . 2 1 3 . 5 2 1 2 7 . . 1 6 . 1 . . . 3 . 4 5 9 6 Parts Lost 1 | . . . . . . . . . . . . . . . . . . . . . . . . . . 1 Power . | . . . . . . . . . . . . . . . . . . . . . . . . . . . Propulsion . | . . . . . . . . . . . . . . . . . . . . . . . . . . . Utility . | . . . . . . . . . . . . . . . . . . . . . . . . . . . Weapon 1 | . . . . . . . . . . . . . . . . . . . . . . . . . . 1 Highest Loss Streak 1 | . . . . . . . . . . . . . . . . . . . . . . . . . . 1 To Critical Strikes . | . . . . . . . . . . . . . . . . . . . . . . . . . . . Average Backups 2 | . 2 1 2 3 1 2 1 1 2 2 3 3 4 4 4 4 4 4 4 4 4 3 4 4 4 3 Power . | . . . . . . 1 . . . . . . . . . . . . . . . . . . . . Propulsion . | . . . . . . . . . . . . . . . . . . . . . . . . . . . Utility 1 | . 2 1 1 1 . . . . . . 1 3 3 3 3 2 2 2 2 2 2 2 2 2 2 1 Weapon . | . . . . . . . . . 1 1 . . . . . . . . . . . . . . . . Tool/Special . | . . . . . . . . . . . . . . . . . . . . . . . . . . . Unused Backups 16 | . . . . 1 7 . . . . 2 1 . . . . . . . . . 2 . . 1 . 2 Power 3 | . . . . . 3 . . . . . . . . . . . . . . . . . . . . . Propulsion . | . . . . . . . . . . . . . . . . . . . . . . . . . . . Utility 9 | . . . . . 4 . . . . 1 1 . . . . . . . . . 1 . . 1 . 1 Weapon 1 | . . . . 1 . . . . . . . . . . . . . . . . . . . . . . Tool/Special 3 | . . . . . . . . . . 1 . . . . . . . . . . 1 . . . . 1 Average Slot Usage (%) 92 | . 97 100 99 100 79 73 81 82 82 82 86 96 96 100 100 100 99 100 100 100 100 100 100 100 99 99 Engine 7 | . 15 7 12 13 11 13 11 11 11 11 5 5 5 5 3 . . . . . . . . . . . Core 2 | . 6 7 1 . 1 . . . . . 4 5 5 5 3 . . . . . . . . . . 2 Reactor 2 | . . . . . . . . . . . . . . . 3 9 9 9 9 9 9 9 9 8 8 5 Treads 5 | . 7 24 22 26 19 . . . . . . . . . . . . . . . . . . . . . Wheel 1 | . 17 . . . . . . . . . . . . . . . . . . . . . . . . . Flight 11 | . . . . . 1 6 5 5 5 5 13 25 25 25 25 23 22 23 23 23 23 22 22 21 20 21 Device 20 | . 19 7 11 13 12 6 12 17 17 21 20 20 20 20 20 21 23 23 23 23 23 28 31 32 34 35 Storage 3 | . . . . . . 6 5 5 5 5 4 5 5 5 5 4 4 4 4 4 4 4 4 4 4 4 Processor 9 | . . . . . 2 13 11 11 11 11 11 15 15 15 15 14 14 14 14 14 14 13 13 13 13 11 Protection 7 | . 6 25 23 20 15 6 5 5 5 4 5 5 5 5 5 4 4 4 4 4 4 1 . . . . Energy Gun 11 | . . . . . . . 14 23 22 20 19 15 15 15 17 14 14 14 14 14 14 13 12 13 13 12 Ballistic Gun 7 | . 24 24 26 26 13 20 6 . . . . . . . . . . . . . . . . . . . Special Weapon 1 | . . . . . . . . . . . . 1 1 5 2 4 4 4 4 4 4 4 4 4 3 3 Peak Build Rating 229 | 10 20 22 39 46 86 91 115 114 121 131 144 132 135 135 144 150 175 174 174 175 180 189 193 200 209 229 Average Rating 115 | 5 15 20 29 44 50 85 104 113 117 121 135 129 131 134 138 147 162 174 174 174 176 184 188 195 197 213 On Entrance 120 | . 10 20 22 39 46 86 89 114 113 119 127 132 129 135 135 144 150 174 174 174 175 177 187 190 200 199 Naked Turns . | . . . . . . . . . . . . . . . . . . . . . . . . . . . Heaviest Build 73 | 13 33 38 49 63 65 45 45 41 44 45 51 46 46 47 51 51 52 52 52 52 51 60 60 64 65 73 Greatest Support 93 | 20 65 65 93 93 93 55 55 55 55 55 80 54 54 54 54 54 56 55 55 55 55 60 60 65 71 77 Greatest Overweight (x) 5 | . 1 . . . . . . . . . 5 . 1 . . . 1 . . . . . . . 1 . Average Overweight (x) . | . . . . . . . . . . . . . . . . . . . . . . . . . . . Largest Inventory Capacity 4 | 3 3 3 3 3 3 3 3 3 3 3 4 4 4 4 4 4 4 4 4 4 4 4 4 4 4 4 Average Capacity 3 | 3 3 3 3 3 3 3 3 3 3 3 3 4 4 4 4 4 4 4 4 4 4 4 4 4 4 4 Most Carried 4 | . 3 2 3 3 3 3 3 3 3 3 4 4 4 4 4 4 4 4 4 4 4 4 4 4 4 4 Average Carried 3 | . 2 1 2 2 1 3 2 2 3 2 3 3 4 4 4 3 4 4 4 4 3 3 3 4 4 3 Final Capacity 4 | 3 3 3 3 3 3 3 3 3 3 3 4 4 4 4 4 4 4 4 4 4 4 4 4 4 4 4 Final Carried 4 | . 2 1 3 3 3 3 2 3 3 3 4 4 4 4 4 4 4 4 4 4 4 4 4 4 4 4 Class Distribution -------------------- 25% | Hacker-Scout 19% | Scavenger-Gunner 11% | Scavenger-Tank 10% | Hacker-Gunner 9% | Scavenger-Scout 7% | Mutant 6% | Tank 6% | Commander-Gunner Dominant Class ---------------- Mutant | -10/Materials Scavenger-Tank | -10/Mines Scavenger-Tank | -9/Materials Tank | -9/Mines Mutant | -9/Exiles Scavenger-Gunner | -8/Mines Scavenger-Gunner | -8/Materials Hacker-Gunner | -8/Storage Commander-Gunner | -8/Recycling Hacker-Gunner | -8/Scraptown Scavenger-Gunner | -6/Factory Scavenger-Scout | -6/Lower Caves Scavenger-Scout | -6/Lower Caves Scavenger-Scout | -6/Zion Hacker-Scout | -6/Deep Caves Hacker-Scout | -5/Proximity Caves Hacker-Scout | -5/Factory Hacker-Scout | -5/Garrison Hacker-Scout | -5/Factory Hacker-Scout | -5/DSF Hacker-Scout | -4/Factory Hacker-Scout | -3/Research Hacker-Scout | -3/Quarantine Hacker-Scout | -2/Research Hacker-Scout | -2/Testing Hacker-Scout | -2/Protoforge Resources | -11 -10 -10 -9 -9 -9 -8 -8 -8 -8 -8 -6 -6 -6 -6 -6 -5 -5 -5 -5 -5 -4 -3 -3 -2 -2 -2 ----------- Run | Yrd Mat Min Mat Min Exi Min Mat Sto Rec Scr Fac Low Low Zio Dee Pro Fac Gar Fac DSF Fac Res Qua Res Tes Frg Matter Collected 6339 | 272 570 72 812 48 725 309 448 70 10 1063 260 59 16 50 80 80 117 10 . 21 80 50 109 251 200 557 Remotely . | . . . . . . . . . . . . . . . . . . . . . . . . . . . Salvage Created 42126 | 37 1062 85 1570 134 152 158 2683 1143 . 5027 6471 603 847 2036 645 343 2444 577 28 527 2075 796 969 2974 1293 7447 Parts 2374 | 3 78 10 106 9 34 13 146 87 4 310 300 21 32 131 28 21 156 43 9 19 120 46 35 135 71 407 Haulers Intercepted 18 | . 1 . 6 . . . 4 . . . 1 . . . . . 1 . . . 3 1 1 . . . Recyclers Shooed 14 | . 1 . . . . . . . . . 7 . . . . . 3 . . . . 2 . 1 . . Parts Field Recycled . | . . . . . . . . . . . . . . . . . . . . . . . . . . . Retrieved Matter . | . . . . . . . . . . . . . . . . . . . . . . . . . . . Parts Self-Destructed 73 | . . . . . . . . . . 1 . 21 30 . . 21 . . . . . . . . . . Prevented . | . . . . . . . . . . . . . . . . . . . . . . . . . . . Kills | -11 -10 -10 -9 -9 -9 -8 -8 -8 -8 -8 -6 -6 -6 -6 -6 -5 -5 -5 -5 -5 -4 -3 -3 -2 -2 -2 ------- Run | Yrd Mat Min Mat Min Exi Min Mat Sto Rec Scr Fac Low Low Zio Dee Pro Fac Gar Fac DSF Fac Res Qua Res Tes Frg Combat Hostiles Destroyed 746 | . 33 6 30 2 5 4 53 31 2 93 120 13 19 12 16 6 43 18 1 9 39 9 11 40 23 108 Guns 724 | . 33 6 30 2 5 4 52 30 2 93 110 13 18 10 16 5 43 18 1 9 38 8 11 39 22 106 Cannons 2 | . . . . . . . 1 . . . . . . . . . . . . . . . . . . 1 AOE 5 | . . . . . . . . . . . 3 . . . . . . . . . 1 . . . . 1 Classes Destroyed 39 | 1 5 . 3 1 2 1 2 . . 8 7 . 1 2 1 . . 1 . . . . 2 . . 2 Worker 36 | . . . 6 . . . 6 1 . . 8 . . . . . 4 . . . 5 1 . 2 1 2 Builder 7 | . . . 1 1 . . 1 . . . . . . . . . 3 . . . . . . . . 1 Tunneler 5 | 2 . . . 1 . . . . . . . . . . . . . . . . 1 1 . . . . Hauler 18 | . 1 . 6 . . . 4 . . . 1 . . . . . 1 . . . 3 1 1 . . . Recycler 14 | . 1 . 2 . . . 1 . . 1 4 . . . . . 2 . . . . . . 2 1 . Mechanic 5 | . . . . . . . 1 . . 1 1 . . . . . . . . . . . . . . 2 Operator 10 | . . . . . . . 1 2 . . 4 . . . . . . . 1 . . . . 1 . 1 Drone 9 | . . . . . . . . . . . 1 . . . . 2 . . . . . . . 1 . 5 Turret 1 | . . . . . 1 . . . . . . . . . . . . . . . . . . . . . Watcher 41 | . 2 . 2 . . . 2 2 . . 5 . . . . . 7 . . . 4 4 3 4 2 4 Swarmer 83 | . 9 6 14 . . . 7 . . . 8 . 6 . . . 6 6 . . 5 . . 4 8 4 Cutter 6 | . . . . . . . . . . . . . . . . . . 5 . 1 . . . . . . Saboteur 7 | . . . . . . . . . . . 6 . . . . . . . . . . . . . . 1 Grunt 280 | . 24 . 10 1 . 3 36 19 . . 49 12 9 . . 2 20 4 . 6 25 5 4 25 10 16 Brawler 12 | . . . . . . . . . . . 7 1 . . . 1 1 . . 1 . . . . . 1 Duelist 19 | . . . . 1 . . 1 2 . . 6 . . . . . . 1 . . . . . 1 . 7 Protector 5 | . . . . . . . . . . . 3 . . . . . . . . . . . . . . 2 Researcher 2 | . . . . . . . . . . . . . . . . . . . . . . . 1 . . 1 Sentry 63 | . . . 6 . . . 8 10 2 . 9 . 3 . . . 5 1 1 . 4 1 . 3 . 10 Specialist 8 | . . . . . . . . . . . 2 . . . . . . 1 . 2 . . . . . 3 Hunter 40 | . . . . . . 1 . . . . 18 . . . . . 4 . . . 4 2 3 . . 8 Programmer 32 | . . . . . . . . . . . 7 . 1 . . . 5 1 . . . . 3 4 5 6 Heavy 8 | . . . . . . . . . . . 3 . . . . . 2 . . . 1 . . 2 . . Q-Series 3 | . . . . . . . . . . . . . . . . . . . . . . . . . . 3 Behemoth 4 | . . . . . . . . . . . 1 . . . . 1 . . . . . 1 . . . 1 Hotshot 23 | . . . . . . . . . . . . . . . . . . . . . . . . . . 23 Decapitator 10 | . . . . . . . . . . . . . . . . . . . . . . . . . . 10 Immortal 3 | . . . . . . . . . . . . . . . . . . . . . . . . . . 3 Overlord 1 | . . . . . . . . . . . . . . . . . . . . . . . . . . 1 Alpha 7 3 | . . . . . . . . . . . . . . . . . . . . . . . 1 . . 2 V-Series 2 | . . . . . . . . . . . . . . . . . . . . . . . . . . 2 Bolteater 6 | . . . . . . . . . . 6 . . . . . . . . . . . . . . . . Federalist 5 | . . . . . . . . . . 5 . . . . . . . . . . . . . . . . Explorer 6 | . . . . . . . . . . 6 . . . . . . . . . . . . . . . . Ranger 3 | . . . . . . . . . . 3 . . . . . . . . . . . . . . . . Guru 7 | . . . . . . . . . . 7 . . . . . . . . . . . . . . . . Scrapper 39 | . . . . . . . . . . 39 . . . . . . . . . . . . . . . . Elite 25 | . . . . . . . . . . 25 . . . . . . . . . . . . . . . . Zionite 54 | . . . . . . . . . . . . . . 54 . . . . . . . . . . . . Z-Light 9 | . . . . . . . . . . . . . . . 9 . . . . . . . . . . . Tinkerer 4 | . . . . . . . . . . . . . 1 3 . . . . . . . . . . . . Assembled 11 | . . . . . 4 . . . . . . . . . 7 . . . . . . . . . . . Surgeon 1 | . . . . . . . . . . . . . . 1 . . . . . . . . . . . . Thug 2 | . . . 1 . . . . . . . . . . 1 . . . . . . . . . . . . Savage 1 | . . . . . . . . . . 1 . . . . . . . . . . . . . . . . Butcher 3 | . . . . . . . . . . . . . . 3 . . . . . . . . . . . . Marauder 2 | . . . . . . . . . . . . . . 2 . . . . . . . . . . . . Mutant 5 | . . . . . . . . . . . . . . 5 . . . . . . . . . . . . Best Kill Streak 40 | 2 5 3 11 2 4 3 17 6 1 40 16 8 12 33 9 3 19 7 2 5 14 11 10 14 8 30 Combat Bots Only 40 | . 5 3 7 2 4 3 7 6 1 40 15 8 10 4 9 3 17 7 1 5 11 3 9 14 6 24 Max Kills in Single Turn 3 | 1 1 2 2 2 1 1 2 2 1 3 3 2 3 2 2 1 3 3 1 3 3 2 1 3 2 3 Gunslinging 2 | . . 1 1 1 . . 1 1 . 2 1 . 1 1 . . 1 . . 1 1 1 . 2 1 1 Exploded 2 | . . . . . . . . . . . 2 . . . . . . . . . 1 . . . . 1 Melee . | . . . . . . . . . . . . . . . . . . . . . . . . . . . Uniques/NPCs Destroyed 8 | . . . . . 4 . 1 . . 2 . . . 1 . . . . . . . . . . . . 8R-AWN (-9/Exiles) EX-DEC (-9/Exiles) EX-BIN (-9/Exiles) EX-HEX (-9/Exiles) 7R-MNS (-8/Materials) Triborg (-8/Scraptown) Optimus (-8/Scraptown) Imprinter (-6/Zion) Combat | -11 -10 -10 -9 -9 -9 -8 -8 -8 -8 -8 -6 -6 -6 -6 -6 -5 -5 -5 -5 -5 -4 -3 -3 -2 -2 -2 -------- Run | Yrd Mat Min Mat Min Exi Min Mat Sto Rec Scr Fac Low Low Zio Dee Pro Fac Gar Fac DSF Fac Res Qua Res Tes Frg Hostile Shots Fired 2302 | . 116 17 84 . 79 12 86 42 . 223 272 13 40 61 17 3 90 24 . 23 75 42 146 77 84 676 Missed 954 | . 35 3 31 . 13 4 39 15 . 98 133 6 14 34 7 2 49 11 . 10 38 18 55 30 34 275 Hits 1348 | . 81 14 53 . 66 8 47 27 . 125 139 7 26 27 10 1 41 13 . 13 37 24 91 47 50 401 Melee 20 | . . . . . . . . 1 . 6 . . . 1 . . . . . 1 . . . . . 11 Projectile 1328 | . 81 14 53 . 66 8 47 26 . 119 139 7 26 26 10 1 41 13 . 12 37 24 91 47 50 390 AOE 5 | . . . . . . . . . . . . . . . . . . . . . . . . . . 5 Critical Strikes 96 | . . . 4 . 22 1 1 1 . 10 6 2 2 1 . . 3 . . 1 3 . 3 3 1 32 Actively Blocked 21 | . . . . . . . . . . . . . . . . . . . . . . . . . . 21 Part Disruptions 2 | . . . . . . . . . . . . . 1 . . . . . . . 1 . . . . . Damage Taken 10173 | . 658 86 443 . 993 118 276 140 . 1000 1294 39 210 258 90 9 639 195 . 109 322 67 226 197 126 2678 Core 7554 | . 521 51 278 . 682 99 202 84 . 738 975 26 151 198 71 7 427 142 . 84 191 46 180 162 97 2142 Absorbed by Shields 2875 | . . . 38 . 263 . . . . . . . . . . . . 4 . . . 56 403 313 295 1503 Redirected to Core 6375 | . 422 51 225 . 635 68 181 80 . 627 764 26 112 143 63 7 411 99 . 65 170 42 138 121 92 1833 Ignored by Resistances 15579 | . 208 28 149 . 350 32 432 274 . 1214 1217 99 223 159 188 24 425 113 . 149 456 260 702 807 710 7360 Core Remaining (%) 96 | 100 . 100 . . . 85 . . . 100 . . . . . 98 . . . 100 100 . 86 . . . Volleys Fired 1500 | 3 72 8 59 3 57 9 112 56 15 114 183 22 29 74 24 11 105 55 2 11 64 22 58 54 34 244 Largest 4 | 2 3 3 4 4 4 3 4 4 4 4 4 3 3 4 4 4 3 3 3 3 3 3 3 3 3 4 Hottest 630 | 40 69 69 92 92 92 69 250 220 311 311 363 282 282 302 321 260 240 240 240 240 240 240 240 245 274 630 Shots Fired 4445 | 6 148 24 213 12 190 27 334 218 60 439 582 66 82 219 78 28 246 129 6 33 180 64 104 160 99 698 Gun 4399 | 6 148 24 213 12 190 27 307 218 60 436 579 66 82 218 76 26 246 129 6 33 180 64 104 160 99 690 Cannon 27 | . . . . . . . 27 . . . . . . . . . . . . . . . . . . . Launcher . | . . . . . . . . . . . . . . . . . . . . . . . . . . . Special 19 | . . . . . . . . . . 3 3 . . 1 2 2 . . . . . . . . . 8 Kinetic 702 | 6 148 24 213 12 190 27 82 . . . . . . . . . . . . . . . . . . . Thermal 3083 | . . . . . . . 252 218 60 436 579 66 82 219 64 17 142 74 4 22 116 42 46 106 64 474 Explosive . | . . . . . . . . . . . . . . . . . . . . . . . . . . . Electromagnetic . | . . . . . . . . . . . . . . . . . . . . . . . . . . . Phasic 654 | . . . . . . . . . . . . . . . 14 11 104 55 2 11 64 22 58 54 35 224 Robot Hit Streak 79 | 2 14 8 26 27 38 17 48 79 25 69 57 54 27 67 22 31 49 39 22 43 51 49 50 66 69 69 Robot Miss Streak 4 | 1 1 2 4 . 3 1 1 1 1 2 3 1 2 2 2 1 3 1 . 1 1 1 1 3 2 3 Penetration Max 2 | . . . . . . . . . . 2 2 1 1 1 1 . 2 1 . 1 2 2 1 2 2 2 Secondary Targets 165 | . 4 3 11 1 1 . 11 8 . 16 19 . 3 8 1 1 8 . . 2 9 2 1 14 6 36 Max Gunslinging Chain 2 | . 1 1 1 1 1 . 1 1 . 2 1 . 1 1 1 1 2 . . 1 1 1 1 2 2 2 Shots Hit Robots 3255 | 4 114 17 143 7 171 23 260 144 8 359 416 51 65 169 35 19 156 57 4 26 127 51 66 125 66 572 Core Hits 2398 | 3 48 6 58 6 45 10 133 64 3 256 415 48 61 111 46 13 142 54 5 25 163 42 43 171 67 360 Critical Kills 1 | . . . 1 . . . . . . . . . . . . . . . . . . . . . . . Critical Parts Destroyed 3 | . 3 . . . . . . . . . . . . . . . . . . . . . . . . . Critical Strikes 83 | . 3 . 1 . . . 10 9 . 9 13 3 2 6 . 1 4 . . . 2 1 1 2 5 11 Burn 58 | . . . . . . . 10 9 . 9 13 3 2 6 . . . . . . . . . . 3 3 Destroy 4 | . 3 . 1 . . . . . . . . . . . . . . . . . . . . . . . Intensify 21 | . . . . . . . . . . . . . . . . 1 4 . . . 2 1 1 2 2 8 Melee Attacks 1 | . . . 1 . . . . . . . . . . . . . . . . . . . . . . . Impact . | . . . . . . . . . . . . . . . . . . . . . . . . . . . Slashing . | . . . . . . . . . . . . . . . . . . . . . . . . . . . Piercing . | . . . . . . . . . . . . . . . . . . . . . . . . . . . Sneak Attacks 1 | . . . 1 . . . . . . . . . . . . . . . . . . . . . . . Combat Hostiles . | . . . . . . . . . . . . . . . . . . . . . . . . . . . Follow-up Attacks . | . . . . . . . . . . . . . . . . . . . . . . . . . . . Damage Inflicted 109988 | 41 1753 275 2381 136 2374 307 4475 2762 167 9013 15603 1332 2168 3614 1048 667 7300 2533 158 1249 7520 2442 2963 6856 3485 27366 Guns 106048 | 41 1753 265 2309 112 2374 307 4136 2762 167 9013 14204 1332 2168 3614 1048 653 7212 2533 158 1249 6177 2442 2963 6856 3485 26715 Cannons 339 | . . . . . . . 339 . . . . . . . . . . . . . . . . . . . Explosions 3403 | . . . . . . . . . . . 1399 . . . . . 88 . . . 1343 . . . . 573 Melee . | . . . . . . . . . . . . . . . . . . . . . . . . . . . Ramming 106 | . . 10 72 24 . . . . . . . . . . . . . . . . . . . . . . Kinetic 7733 | 41 1753 265 2309 112 2374 307 572 . . . . . . . . . . . . . . . . . . . Thermal 80730 | . . . . . . . 3903 2762 167 9013 15016 1332 2168 3614 1048 421 4800 1592 119 874 5430 1624 1605 4807 2311 18124 Explosive 1203 | . . . . . . . . . . . 542 . . . . . 88 . . . . . . . . 573 Electromagnetic 348 | . . . . . . . . . . . 45 . . . . . . . . . 303 . . . . . Impact . | . . . . . . . . . . . . . . . . . . . . . . . . . . . Slashing . | . . . . . . . . . . . . . . . . . . . . . . . . . . . Piercing . | . . . . . . . . . . . . . . . . . . . . . . . . . . . Phasic 19868 | . . . . . . . . . . . . . . . . 246 2412 941 39 375 1787 818 1358 2049 1174 8669 Highest Corruption 27 | . . . 6 6 6 . . . . 27 1 1 1 1 . . 1 2 2 2 4 . 1 6 2 10 Average Corruption 3 | . . . 5 6 5 . . . . 27 1 1 1 1 . . 1 1 2 2 4 . 1 4 1 3 Corruption Purged 12 | . . . . . 6 . . . . . . . . . . . . . . . . . . 6 . . Corruption Blocked . | . . . . . . . . . . . . . . . . . . . . . . . . . . . Effects 201 | . . . 34 25 46 . . . . 12 7 1 1 . . . 5 7 2 1 5 . 2 11 1 41 Message Errors 48 | . . . 7 4 15 . . . . 4 5 . . . . . 1 1 . . . . . 2 . 9 Matter Fused 51 | . . . 5 9 11 . . . . 4 . 1 1 . . . 2 3 . . . . 1 4 . 10 Heat Flow Errors 19 | . . . 4 3 2 . . . . 2 . . . . . . . 1 1 . . . . 1 . 5 Energy Discharges 25 | . . . 4 3 6 . . . . 1 . . . . . . . . . 1 2 . . 2 . 6 Parts Fused 2 | . . . . 1 . . . . . . 1 . . . . . . . . . . . . . . . Data Loss (minor) 26 | . . . 3 4 7 . . . . . . . . . . . 1 2 1 . 1 . 1 . . 6 Data Loss (major) 10 | . . . 7 1 1 . . . . . . . . . . . . . . . 1 . . . . . Misfires 3 | . . . . . . . . . . 1 . . . . . . . . . . . . . 1 1 . Alerts 6 | . . . 1 . 2 . . . . . . . . . . . . . . . 1 . . 1 . 1 Weapon Failures 11 | . . . 3 . 2 . . . . . 1 . . . . . 1 . . . . . . . . 4 Overload Shots 3 | . . . . . . . . . . . . . . . . . . . . . . . . . . 3 Overflow Damage 271 | . . . . . . . 7 . . . 166 . . . . . . . . . 70 . . . . 28 Projectiles 7 | . . . . . . . 7 . . . . . . . . . . . . . . . . . . . Explosions 264 | . . . . . . . . . . . 166 . . . . . . . . . 70 . . . . 28 Melee . | . . . . . . . . . . . . . . . . . . . . . . . . . . . Knockbacks . | . . . . . . . . . . . . . . . . . . . . . . . . . . . Impact . | . . . . . . . . . . . . . . . . . . . . . . . . . . . Kinetic . | . . . . . . . . . . . . . . . . . . . . . . . . . . . Secondary . | . . . . . . . . . . . . . . . . . . . . . . . . . . . Self-Inflicted Damage 169 | . . . . . . . . . . . . . . . . . . . . . 32 . . . . 137 Shots 4 | . . . . . . . . . . . . . . . . . . . . . 2 . . . . 2 Rammed 13 | . . 2 6 5 . . . . . . . . . . . . . . . . . . . . . . Targets Rammed 17 | . . 2 10 5 . . . . . . . . . . . . . . . . . . . . . . Kicked . | . . . . . . . . . . . . . . . . . . . . . . . . . . . Crushed 4 | . . . 4 . . . . . . . . . . . . . . . . . . . . . . . Highest Temperature 314 | . . . 167 226 237 . 297 200 178 157 302 196 314 250 192 74 172 132 101 84 233 178 114 104 204 288 Average Temperature 66 | . . . 35 100 46 . 50 65 75 51 85 81 92 65 68 44 65 61 59 34 70 76 47 48 73 58 Received Heat Transfer 3163 | . 411 . 250 . . 63 351 198 . 375 610 102 138 63 66 12 171 51 . 111 106 41 . . 3 41 Effects 7 | . . . . . . . 4 . . . 1 . 1 . . . . . . . . . . . 1 . Energy Bleed 1 | . . . . . . . 1 . . . . . . . . . . . . . . . . . . . Interference 5 | . . . . . . . 3 . . . . . 1 . . . . . . . . . . . 1 . Short Circuit 1 | . . . . . . . . . . . 1 . . . . . . . . . . . . . . . Siege Activations . | . . . . . . . . . . . . . . . . . . . . . . . . . . . Martial Activations . | . . . . . . . . . . . . . . . . . . . . . . . . . . . Shielding Activations . | . . . . . . . . . . . . . . . . . . . . . . . . . . . Robots Disrupted . | . . . . . . . . . . . . . . . . . . . . . . . . . . . Combat Hostiles . | . . . . . . . . . . . . . . . . . . . . . . . . . . . Robots Corrupted . | . . . . . . . . . . . . . . . . . . . . . . . . . . . Combat Hostiles . | . . . . . . . . . . . . . . . . . . . . . . . . . . . Parts Fried . | . . . . . . . . . . . . . . . . . . . . . . . . . . . Impact Corruptions . | . . . . . . . . . . . . . . . . . . . . . . . . . . . Robots Melted 16 | . . . . . . . . 1 . . 8 . 1 2 . 1 . . . . . 1 . 1 1 . Combat Hostiles 15 | . . . . . . . . 1 . . 7 . 1 2 . 1 . . . . . 1 . 1 1 . Parts Melted 331 | . . . . . . . 17 18 2 50 91 10 15 22 10 2 16 6 . 1 13 3 7 29 10 9 Heat Transferred 122468 | . . . . . . . 8109 5994 384 11343 27448 2772 4216 6811 2041 671 7087 2190 174 1345 7250 2190 2628 7396 3525 18894 Parts Sabotaged . | . . . . . . . . . . . . . . . . . . . . . . . . . . . Parts Stolen . | . . . . . . . . . . . . . . . . . . . . . . . . . . . Parts Stripped . | . . . . . . . . . . . . . . . . . . . . . . . . . . . Power Chain Reactions 2 | . . . . . . . . . . . 1 . . . . . . . . . 1 . . . . . Alert | -11 -10 -10 -9 -9 -9 -8 -8 -8 -8 -8 -6 -6 -6 -6 -6 -5 -5 -5 -5 -5 -4 -3 -3 -2 -2 -2 ------- Run | Yrd Mat Min Mat Min Exi Min Mat Sto Rec Scr Fac Low Low Zio Dee Pro Fac Gar Fac DSF Fac Res Qua Res Tes Frg Maximum Alert Level 5 | . 3 . 3 1 . . 3 1 . . 5 . . . . . 4 5 4 3 4 3 2 3 4 5 Low Security (%) 37 | 100 16 100 11 58 . 100 53 94 100 . 29 . . . . . 56 . . . . . 66 6 . . Level 1 9 | . 15 . 8 41 . . 5 5 . . 11 . . . . . 14 . . . 4 . 22 4 . 1 Level 2 20 | . 67 . 39 . . . 12 . . . 8 . . . . . 8 . . . 44 11 11 34 79 19 Level 3 17 | . . . 40 . . . 28 . . . 14 . . . . . 4 4 2 99 32 88 . 53 15 35 Level 4 7 | . . . . . . . . . . . 22 . . . . . 15 18 97 . 17 . . . 5 14 Level 5 4 | . . . . . . . . . . . 2 . . . . . . 77 . . . . . . . 28 High Security 1 | . . . . . . . . . . . 10 . . . . . . . . . . . . . . . Max Security . | . . . . . . . . . . . . . . . . . . . . . . . . . . . Sterilizations 2 | . . . 1 . . . 1 . . . . . . . . . . . . . . . . . . . Peak Influence 2792 | 10 700 189 1049 319 . 60 917 319 95 . 2792 . . . . . 1415 2419 1133 921 1471 828 435 962 1216 2589 Initial 1100 | . . 119 . 319 . . 13 319 83 . . . . . . . 150 848 1100 680 418 660 400 120 466 595 Average 572 | 2 442 58 626 156 . 13 366 84 53 . 835 . . . . . 382 1939 1115 835 790 780 174 646 619 1270 Influence Increases 23640 | 10 1094 140 1699 65 . 109 1594 1052 163 10 4165 290 405 . . 115 2306 1651 53 281 2113 308 447 1272 1050 3248 Destroy 0b10 Robot/C 13420 | . 660 120 1040 40 . 80 1040 620 40 . 2360 260 380 . . 80 1040 820 20 200 880 180 240 780 460 2080 Destroy 0b10 Robot/NC 790 | 10 20 . 105 10 . . 80 25 . 10 140 . 5 . . 15 100 . 5 . 65 35 20 50 20 75 Destroy Leader 2458 | . 156 20 262 10 . 20 232 174 . . 526 30 20 . . 20 228 30 10 20 162 50 38 148 54 248 Allied During Kill 776 | . . . 82 5 . . . . . . 40 . . . . . 184 355 9 44 49 . . . 4 4 Trap Triggered on 0b10 60 | . . . . . . . . . . . 60 . . . . . . . . . . . . . . . Successful Hack 297 | . 5 . . . . . 7 14 . . 69 . . . . . 80 18 . . 20 22 5 . 23 34 Select Force Hacks 890 | . 210 . 180 . . . 180 150 120 . 50 . . . . . . . . . . . . . . . Disable Machine 1206 | . 9 . 27 . . 9 . 36 . . 432 . . . . . 63 9 9 9 297 9 45 . 63 189 Anti-Garrison Action 350 | . . . . . . . . . . . . . . . . . . 200 . . 150 . . . . . Destroy Structure 1773 | . 4 . 3 . . . 10 3 3 . 308 . . . . . 296 219 . 8 460 12 54 84 51 258 Advance Influence 150 | . . . . . . . . . . . . . . . . . 150 . . . . . . . . . Partial Spotted 450 | . . . . . . . 45 . . . 60 . . . . . 60 . . . 15 . 45 120 60 45 Lose Combat Pursuer 1020 | . 30 . . . . . . 30 . . 120 . . . . . 105 . . . 15 . . 90 315 315 Influence Decreases 21087 | 10 730 504 730 1034 . 69 747 1685 411 16 1373 1401 668 1418 . 115 931 607 1369 463 1583 941 1018 567 786 1911 Entered New Map 10019 | . . 245 . 650 . . 27 568 171 6 . 1251 468 1418 . . . 527 1319 423 503 791 418 127 486 621 Time Decay 7859 | 10 730 259 670 384 . 69 720 459 240 10 1123 150 200 . . 115 570 . 50 . 280 150 290 290 290 800 Lost Part 10 | . . . . . . . . . . . . . . . . . . . . . . . . . . 10 Lost Ally 390 | . . . 60 . . . . . . . 100 . . . . . 10 80 . 40 50 . 10 . 10 30 Purge Threat 2809 | . . . . . . . . 658 . . 150 . . . . . 351 . . . 750 . 300 150 . 450 Squads Dispatched 151 | . 11 . 11 . . . 14 6 . . 37 . . . . . 11 . . 1 11 2 4 12 12 19 Investigation 60 | . 11 . 7 . . . 10 6 . . 11 . . . . . 3 . . . 3 . . 1 4 4 Extermination 25 | . . . . . . . . . . . 6 . . . . . 3 . . . . 1 4 4 3 4 Reinforcement 28 | . . . 3 . . . 2 . . . 5 . . . . . 4 . . 1 3 . . 4 1 5 Assault 29 | . . . 1 . . . 1 . . . 13 . . . . . 1 . . . 4 1 . . 2 6 Garrison 9 | . . . . . . . 1 . . . 2 . . . . . . . . . 1 . . 3 2 . Intercept . | . . . . . . . . . . . . . . . . . . . . . . . . . . . Searches Triggered . | . . . . . . . . . . . . . . . . . . . . . . . . . . . Construction Impeded 3 | . . . . . . . 1 . . . 1 . . . . . . . . . . . . . . 1 Haulers Reinforced 3 | . . . . . . . . . . . 1 . . . . . . . . . 1 . . 1 . . Active Scanning Responses . | . . . . . . . . . . . . . . . . . . . . . . . . . . . Cargo Convoy Interrupts 2 | . . . . . . . . . . . 1 . . . . . 1 . . . . . . . . . Stealth | -11 -10 -10 -9 -9 -9 -8 -8 -8 -8 -8 -6 -6 -6 -6 -6 -5 -5 -5 -5 -5 -4 -3 -3 -2 -2 -2 --------- Run | Yrd Mat Min Mat Min Exi Min Mat Sto Rec Scr Fac Low Low Zio Dee Pro Fac Gar Fac DSF Fac Res Qua Res Tes Frg Distress Signals 20 | . 1 . 3 . . . 3 . . . 3 . . . . . 3 . . . . . . 1 2 4 Communications Jammed . | . . . . . . . . . . . . . . . . . . . . . . . . . . . Distress Signals . | . . . . . . . . . . . . . . . . . . . . . . . . . . . Times Spotted 1067 | . 38 5 53 1 46 4 61 40 1 102 157 13 19 64 13 5 61 30 1 8 47 11 21 55 52 159 Peak Tracking Total 21 | . 6 3 4 1 9 3 6 6 . 21 8 4 10 8 8 1 9 11 1 4 7 3 9 11 14 13 Tactical Retreats 48 | . 2 . . . 14 . 1 2 . 1 6 . . 2 2 . 2 . . . 1 . . 2 5 8 Traps | -11 -10 -10 -9 -9 -9 -8 -8 -8 -8 -8 -6 -6 -6 -6 -6 -5 -5 -5 -5 -5 -4 -3 -3 -2 -2 -2 ------- Run | Yrd Mat Min Mat Min Exi Min Mat Sto Rec Scr Fac Low Low Zio Dee Pro Fac Gar Fac DSF Fac Res Qua Res Tes Frg Traps Triggered 19 | . 2 . 1 . . . 1 1 . . 2 . . . . . . 3 . 3 . . . 1 1 4 Indirectly . | . . . . . . . . . . . . . . . . . . . . . . . . . . . Trap Hack Attempts . | . . . . . . . . . . . . . . . . . . . . . . . . . . . Triggered . | . . . . . . . . . . . . . . . . . . . . . . . . . . . Disarmed 10 | . . . . . . . . . . . . . . . . . . . . . 10 . . . . . Reprogrammed 10 | . . . . . . . . . . . 6 . . . . . . . . . . . 4 . . . Reused 6 | . . . . . . . . . . . 6 . . . . . . . . . . . . . . . Traps Extracted . | . . . . . . . . . . . . . . . . . . . . . . . . . . . Installed . | . . . . . . . . . . . . . . . . . . . . . . . . . . . Triggered 6 | . . . . . . . . . . . 6 . . . . . . . . . . . . . . . Machines | -11 -10 -10 -9 -9 -9 -8 -8 -8 -8 -8 -6 -6 -6 -6 -6 -5 -5 -5 -5 -5 -4 -3 -3 -2 -2 -2 ---------- Run | Yrd Mat Min Mat Min Exi Min Mat Sto Rec Scr Fac Low Low Zio Dee Pro Fac Gar Fac DSF Fac Res Qua Res Tes Frg Machines Disabled 167 | . 1 . 3 . 4 1 . 4 . 11 48 . 2 5 2 1 7 5 1 1 34 1 6 . 7 23 Max in Single Turn 14 | . 1 . . . 1 1 . 1 . 2 6 . 1 1 2 1 4 1 1 1 14 1 1 . 1 2 Garrison Access 12 | . . . . . . . 1 . . . 3 . . . . . 2 . . . 3 2 . . . 1 Garrison Relay 5 | . . . . . . . . . . . . . . . . . . 5 . . . . . . . . Machines Repaired . | . . . . . . . . . . . . . . . . . . . . . . . . . . . Machines Dismantled 9 | . . . . . . . . . . . . . . 3 . . . . . . 1 1 1 . 3 . Machines Sabotaged 12 | . 3 . 3 . . . 3 3 . . . . . . . . . . . . . . . . . . Overloaded Fab Kills . | . . . . . . . . . . . . . . . . . . . . . . . . . . . Hacking | -11 -10 -10 -9 -9 -9 -8 -8 -8 -8 -8 -6 -6 -6 -6 -6 -5 -5 -5 -5 -5 -4 -3 -3 -2 -2 -2 --------- Run | Yrd Mat Min Mat Min Exi Min Mat Sto Rec Scr Fac Low Low Zio Dee Pro Fac Gar Fac DSF Fac Res Qua Res Tes Frg Machines Accessed 146 | . 11 . 8 2 1 . 12 13 5 2 24 1 2 . . 1 16 4 1 . 10 6 6 3 9 9 Terminals 95 | . 8 . 6 . . . 8 11 1 . 16 . 1 . . 1 8 4 1 . 7 4 5 3 7 4 Fabricators 15 | . . . . . . . . . . . 4 . . . . . 5 . . . 1 . . . 1 4 Repair Stations 5 | . 1 . 1 . . . 1 2 . . . . . . . . . . . . . . . . . . Recycling Units 8 | . 2 . 1 . . . 1 . 4 . . . . . . . . . . . . . . . . . Scanalyzers 3 | . . . . . . . 1 . . . 1 . . . . . . . . . . . 1 . . . Garrison Access 13 | . . . . . . . 1 . . . 3 . . . . . 3 . . . 2 2 . . 1 1 Total Hacks 369 | . 17 . 19 2 1 . 26 36 6 7 65 1 9 . . 1 50 6 1 . 37 11 15 7 21 31 Successful 229 | . 14 . 10 2 1 . 21 24 6 7 36 1 9 . . 1 32 4 1 . 19 6 12 2 11 10 Failed 139 | . 3 . 9 . . . 4 12 . . 29 . . . . . 18 2 . . 18 5 3 5 10 21 Catastrophic 21 | . . . . . . . . 1 . . 5 . . . . . 1 1 . . 1 2 . 2 4 4 Database Lockouts 1 | . . . . . . . 1 . . . . . . . . . . . . . . . . . . . Manual 221 | . 15 . 17 . 1 . 22 32 5 . 40 . . . . . 21 . . . 24 9 10 4 12 9 Terminals 266 | . 13 . 17 . . . 21 34 2 . 46 . 8 . . 1 28 6 1 . 29 9 14 7 15 15 Fabricators 56 | . . . . . . . . . . . 15 . . . . . 19 . . . 3 . . . 4 15 Repair Stations 5 | . 1 . 1 . . . 1 2 . . . . . . . . . . . . . . . . . . Recycling Units 9 | . 3 . 1 . . . 1 . 4 . . . . . . . . . . . . . . . . . Scanalyzers 4 | . . . . . . . 2 . . . 1 . . . . . . . . . . . 1 . . . Garrison Access 17 | . . . . . . . 1 . . . 3 . . . . . 3 . . . 5 2 . . 2 1 Terminal Hacks 102 | . 3 . 4 2 1 . 5 13 1 7 13 1 9 . . 1 10 4 1 . 10 1 6 2 5 3 Record 9 | . . . . . . . . . . . . . 8 . . 1 . . . . . . . . . . Part Schematic 4 | . . . . . . . . . . . 2 . . . . . . . . . . . . . 2 . Robot Analysis 23 | . 3 . 3 . . . 3 2 . 6 1 . . . . . 1 . . . 2 1 1 . . . Prototype ID Bank 1 | . . . . . . . . . . . 1 . . . . . . . . . . . . . . . Open Door 8 | . . . . 2 . . . 3 . . . 1 1 . . . . 1 . . . . . . . . Open DSF 1 | . . . . . . . . . . . . . . . . . . . 1 . . . . . . . Branch Access Points 5 | . . . . . . . 1 . . . 1 . . . . . 1 . . . . . . 1 1 . Emergency Access Points 1 | . . . . . . . . . . . . . . . . . . 1 . . . . . . . . Machine Index 1 | . . . . . . . . . . . . . . . . . . . . . 1 . . . . . Terminal Index 4 | . . . . . . . 1 1 . . 1 . . . . . . . . . . . 1 . . . Fabricator Index 2 | . . . . . . . . . . . 1 . . . . . 1 . . . . . . . . . Scanalyzer Index 2 | . . . . . . . . . . . . . . . . . 1 . . . . . 1 . . . Garrison Index 1 | . . . . . . . . . . . . . . . . . 1 . . . . . . . . . Alert Level 3 | . . . . . . . . 1 1 . 1 . . . . . . . . . . . . . . . Unreport Threat 22 | . . . . . . . . 6 . . 1 . . . . . 4 . . . 5 . 2 1 . 3 Locate Traps 2 | . . . 1 . . . . . . . 1 . . . . . . . . . . . . . . . Disarm Traps 2 | . . . . . . . . . . . . . . . . . . . . . 2 . . . . . Reprogram Traps 2 | . . . . . . . . . . . 1 . . . . . . . . . . . 1 . . . Hauler Manifests 2 | . . . . . . . . . . . 1 . . . . . 1 . . . . . . . . . Registered Components 1 | . . . . . . . . . . . 1 . . . . . . . . . . . . . . . Patrol Navigation 1 | . . . . . . . . . . . . . . . . . . 1 . . . . . . . . Security Stations 1 | . . . . . . . . . . . . . . . . . . 1 . . . . . . . . Proto ID Catalog 2 | . . . . . 1 . . . . 1 . . . . . . . . . . . . . . . . Protovariant Controls 2 | . . . . . . . . . . . . . . . . . . . . . . . . . 2 . Fabricator Hacks 23 | . . . . . . . . . . . 7 . . . . . 9 . . . 1 . . . 2 4 Network Status 3 | . . . . . . . . . . . 1 . . . . . 2 . . . . . . . . . Load Schematic 11 | . . . . . . . . . . . 3 . . . . . 3 . . . 1 . . . 1 3 Build 9 | . . . . . . . . . . . 3 . . . . . 4 . . . . . . . 1 1 Repair Station Hacks . | . . . . . . . . . . . . . . . . . . . . . . . . . . . Recycling Unit Hacks . | . . . . . . . . . . . . . . . . . . . . . . . . . . . Scanalyzer 2 | . . . . . . . 2 . . . . . . . . . . . . . . . . . . . Insert Component 1 | . . . . . . . 1 . . . . . . . . . . . . . . . . . . . Analyze 1 | . . . . . . . 1 . . . . . . . . . . . . . . . . . . . Garrison Access Hacks 11 | . . . . . . . 1 . . . 3 . . . . . 3 . . . 1 2 . . . 1 Unlock Access 1 | . . . . . . . . . . . . . . . . . 1 . . . . . . . . . Seal Access 10 | . . . . . . . 1 . . . 3 . . . . . 2 . . . 1 2 . . . 1 Unauthorized Hacks 90 | . 10 . 6 . . . 13 11 5 . 13 . . . . . 10 . . . 7 3 6 . 4 2 Terminals 62 | . 7 . 4 . . . 11 9 1 . 6 . . . . . 5 . . . 7 3 5 . 2 2 Assimilate 14 | . . . . . . . . 1 . . 3 . . . . . 1 . . . 5 . . . 2 2 Botnet 24 | . . . . . . . 3 4 1 . 2 . . . . . 4 . . . 2 3 5 . . . Operators 1 | . . . . . . . . . . . 1 . . . . . . . . . . . . . . . Sabotage 22 | . 6 . 4 . . . 8 4 . . . . . . . . . . . . . . . . . . Search 1 | . 1 . . . . . . . . . . . . . . . . . . . . . . . . . Fabricators 13 | . . . . . . . . . . . 6 . . . . . 5 . . . . . . . 2 . Prioritize 7 | . . . . . . . . . . . 3 . . . . . 3 . . . . . . . 1 . Liberate 3 | . . . . . . . . . . . 1 . . . . . 1 . . . . . . . 1 . Haulers 2 | . . . . . . . . . . . 1 . . . . . 1 . . . . . . . . . Download 1 | . . . . . . . . . . . 1 . . . . . . . . . . . . . . . Repair Stations 5 | . 1 . 1 . . . 1 2 . . . . . . . . . . . . . . . . . . Patch 5 | . 1 . 1 . . . 1 2 . . . . . . . . . . . . . . . . . . Recycling Units 8 | . 2 . 1 . . . 1 . 4 . . . . . . . . . . . . . . . . . Tunnel 8 | . 2 . 1 . . . 1 . 4 . . . . . . . . . . . . . . . . . Scanalyzers 2 | . . . . . . . . . . . 1 . . . . . . . . . . . 1 . . . Researchers 1 | . . . . . . . . . . . . . . . . . . . . . . . 1 . . . Extract 1 | . . . . . . . . . . . 1 . . . . . . . . . . . . . . . Garrison Access . | . . . . . . . . . . . . . . . . . . . . . . . . . . . Data Cores Recovered 6 | . . . . . . . . 2 . . 2 . . . . . . . . . . . . 1 . 1 Used 2 | . . . . . . . . 2 . . . . . . . . . . . . . . . . . . Hacking Detections 87 | . 1 . 4 . . . 6 8 1 . 18 . 1 . . . 10 2 . . 9 4 5 2 8 8 Full Trace Events 25 | . 1 . 2 . . . . . . . 8 . . . . . 3 . . . 3 . . 1 3 4 Feedback Events 3 | . . . 1 . . . . . . . 1 . . . . . . . . . . . . . . 1 Corruption 3 | . . . 1 . . . . . . . 1 . . . . . . . . . . . . . . 1 Feedback Blocked . | . . . . . . . . . . . . . . . . . . . . . . . . . . . Robot Schematics Acquired 4 | . . . . . . . . . . . . . . 4 . . . . . . . . . . . . Robots Built 12 | . . . . . . . . . . . . . . . . . 9 . . . . . . . . 3 Authchips . | . . . . . . . . . . . . . . . . . . . . . . . . . . . Time 351 | . . . . . . . . . . . . . . . . . 277 . . . . . . . . 74 Total Robot Build Rating 108 | . . . . . . . . . . . . . . . . . 81 . . . . . . . . 27 Part Schematics Acquired 25 | . . . . . . . 1 . . . 4 . . 14 . . . . . . . . 1 . 2 3 Parts Built 8 | . . . . . . . . . . . 6 . . . . . 1 . . . . . . . 1 . Authchips . | . . . . . . . . . . . . . . . . . . . . . . . . . . . Time 417 | . . . . . . . . . . . 195 . . . . . 111 . . . . . . . 111 . Total Part Build Rating 50 | . . . . . . . . . . . 32 . . . . . 9 . . . . . . . 9 . Parts Repaired . | . . . . . . . . . . . . . . . . . . . . . . . . . . . Time . | . . . . . . . . . . . . . . . . . . . . . . . . . . . Parts Recycled . | . . . . . . . . . . . . . . . . . . . . . . . . . . . Recycled Matter . | . . . . . . . . . . . . . . . . . . . . . . . . . . . Retrieved Matter . | . . . . . . . . . . . . . . . . . . . . . . . . . . . Retrieved Components . | . . . . . . . . . . . . . . . . . . . . . . . . . . . Parts Scanalyzed 1 | . . . . . . . 1 . . . . . . . . . . . . . . . . . . . Part Schematics Acquired 1 | . . . . . . . 1 . . . . . . . . . . . . . . . . . . . Parts Damaged . | . . . . . . . . . . . . . . . . . . . . . . . . . . . Bothacking | -11 -10 -10 -9 -9 -9 -8 -8 -8 -8 -8 -6 -6 -6 -6 -6 -5 -5 -5 -5 -5 -4 -3 -3 -2 -2 -2 ------------ Run | Yrd Mat Min Mat Min Exi Min Mat Sto Rec Scr Fac Low Low Zio Dee Pro Fac Gar Fac DSF Fac Res Qua Res Tes Frg Used RIF Installer . | . . . . . . . . . . . . . . . . . . . . . . . . . . . Robots Hacked 1 | . . . 1 . . . . . . . . . . . . . . . . . . . . . . . Non-combat 1 | . . . 1 . . . . . . . . . . . . . . . . . . . . . . . Combat . | . . . . . . . . . . . . . . . . . . . . . . . . . . . Robot Hacks Applied 1 | . . . 1 . . . . . . . . . . . . . . . . . . . . . . . parse_system 1 | . . . 1 . . . . . . . . . . . . . . . . . . . . . . . Relay Couplers Released 8 | . . . . . . . . . . . . . . . . . . 7 . . 1 . . . . . Machine Destruction 8 | . . . . . . . . . . . . . . . . . . 7 . . 1 . . . . . Fabnet Peak Effective % . | . . . . . . . . . . . . . . . . . . . . . . . . . . . Robots Rewired 2 | . . . . . . . . . . . . . . . . . . 2 . . . . . . . . Allies Hacked 1 | . . . . . . . . . . . . . . . . . . . . . . . 1 . . . Hacks Repelled . | . . . . . . . . . . . . . . . . . . . . . . . . . . . Allies | -11 -10 -10 -9 -9 -9 -8 -8 -8 -8 -8 -6 -6 -6 -6 -6 -5 -5 -5 -5 -5 -4 -3 -3 -2 -2 -2 -------- Run | Yrd Mat Min Mat Min Exi Min Mat Sto Rec Scr Fac Low Low Zio Dee Pro Fac Gar Fac DSF Fac Res Qua Res Tes Frg Total Allies 53 | . . 5 . . . . . 11 . 5 5 . . . . . 12 2 . . 5 . . . 4 4 Largest Group 11 | . . 5 5 . . . . 11 11 11 4 . . . . . 11 11 7 7 5 1 1 . 4 3 Highest-Rated Group 604 | . . 81 81 . . . . 199 199 235 188 . . . . . 604 604 344 344 188 26 22 . 200 177 Highest-Rated Ally 59 | . . 31 31 . . . . 29 29 47 47 . . . . . 59 59 54 54 54 26 22 . 58 59 Initial Warlord ECA Mod 26 | . . . . . . . . . . . . . . . . . . . 5 5 4 3 3 2 2 2 Total Orders 34 | . . . . 2 . . . 2 1 16 6 . . . . . 1 . . . . . 5 . 1 . STAY 26 | . . . . 1 . . . 2 1 14 3 . . . . . 1 . . . . . 3 . 1 . FOLLOW 8 | . . . . 1 . . . . . 2 3 . . . . . . . . . . . 2 . . . Ally Attacks 353 | . . . 88 3 . . . . . 103 20 . . . . . 27 67 . 9 17 . . . 2 17 Total Damage 9323 | . . . 1175 17 . . . . . 1718 695 . . . . . 1429 2639 . 174 840 . . . 22 614 Kills 88 | . . . 27 . . . . . . 14 4 . . . . . 12 23 . 1 7 . . . . . Allies Corrupted 5 | . . . . . 4 . . . . . . . . . . . . 1 . . . . . . . . Allies Melted . | . . . . . . . . . . . . . . . . . . . . . . . . . . . Turrets Deployed 1 | . . . . . . . . . . 1 . . . . . . . . . . . . . . . . Intel | -11 -10 -10 -9 -9 -9 -8 -8 -8 -8 -8 -6 -6 -6 -6 -6 -5 -5 -5 -5 -5 -4 -3 -3 -2 -2 -2 ------- Run | Yrd Mat Min Mat Min Exi Min Mat Sto Rec Scr Fac Low Low Zio Dee Pro Fac Gar Fac DSF Fac Res Qua Res Tes Frg Active Infowar (turns) 3890 | 4 1571 899 1360 50 . . . . . . . . . . . . . . . . 2 . 2 . . 2 Terrain 1243 | 4 1239 . . . . . . . . . . . . . . . . . . . . . . . . . Seismic 3882 | 2 1571 899 1360 50 . . . . . . . . . . . . . . . . . . . . . . Cloaking 2 | . . . . . . . . . . . . . . . . . . . . . 2 . . . . . Jamming 2 | . . . . . . . . . . . . . . . . . . . . . . . . . . 2 ECM 2 | . . . . . . . . . . . . . . . . . . . . . . . 2 . . . Robot Analysis Total 23 | . 3 . 3 . . . 3 2 . 6 1 . . . . . 1 . . . 2 1 1 . . . Derelict Logs Recovered 10 | . . 2 . 1 . . . . . . . 2 1 2 . 2 . . . . . . . . . . Drone Launches 8 | . . . . 8 . . . . . . . . . . . . . . . . . . . . . . Drone Recoveries 2 | . . . . 2 . . . . . . . . . . . . . . . . . . . . . . Exploration | -11 -10 -10 -9 -9 -9 -8 -8 -8 -8 -8 -6 -6 -6 -6 -6 -5 -5 -5 -5 -5 -4 -3 -3 -2 -2 -2 ------------- Run | Yrd Mat Min Mat Min Exi Min Mat Sto Rec Scr Fac Low Low Zio Dee Pro Fac Gar Fac DSF Fac Res Qua Res Tes Frg Turns Passed 22338 | 60 1571 899 1360 868 1578 309 1455 1018 497 2011 2631 315 401 589 397 268 1250 374 115 145 560 310 584 580 591 1602 Spaces Moved 32592 | 39 1111 540 683 532 921 529 1735 1338 755 2594 4354 909 942 965 1142 879 2220 690 378 241 1788 934 1397 1303 1401 2272 Core 19 | 2 . . . . . . . . . . 16 . 1 . . . . . . . . . . . . . Treads 2744 | . 298 540 683 532 691 . . . . . . . . . . . . . . . . . . . . . Legs . | . . . . . . . . . . . . . . . . . . . . . . . . . . . Wheels 850 | 37 813 . . . . . . . . . . . . . . . . . . . . . . . . . Hover . | . . . . . . . . . . . . . . . . . . . . . . . . . . . Flight 28979 | . . . . . 230 529 1735 1338 755 2594 4338 909 941 965 1142 879 2220 690 378 241 1788 934 1397 1303 1401 2272 Fastest Speed 10 | 50 80 160 145 145 50 50 50 50 50 50 26 26 26 26 26 26 10 10 10 10 10 10 10 10 10 10 Average Speed 39 | 78 101 160 156 145 121 50 50 50 50 50 37 26 26 26 26 26 16 10 10 10 10 10 10 10 16 14 Slowest Speed 300 | 80 160 160 160 145 145 50 50 50 50 50 300 26 100 26 26 26 101 10 10 10 10 10 10 10 101 18 Overloaded Moves . | . . . . . . . . . . . . . . . . . . . . . . . . . . . Propulsion Burnouts . | . . . . . . . . . . . . . . . . . . . . . . . . . . . Robots Hopped 225 | . . . . . 1 6 20 22 7 6 35 . 1 1 . . 26 . . . 20 6 16 20 9 29 Potential Cave-ins 10 | . . . . . . . . . . . . . . . . . 7 . . . . . 3 . . . Cave-ins Triggered 1 | . . . . . . . . . . . . . . . . . . . . . . . . . . 1 Exploration Rate (%) 76 | 3 97 97 73 100 80 95 89 97 99 86 76 95 96 90 87 98 47 94 10 98 35 27 96 47 96 59 Regions Visited 26 Branch Regions 15 Pre-discovered Areas 12 | . 2 . 1 2 . . 1 . 4 . . . 2 . . . . . . . . . . . . . Known Exits Taken 15 | . . . . . . 1 1 . . . 1 1 1 1 1 1 1 . 1 . 1 1 1 1 1 . Unknown Exits Taken 9 | 1 1 1 1 1 1 . . 1 1 1 . . . . . . . . . . . . . . . . Scrap Searched 22 | . . 1 . 1 . 2 . . . 4 . 4 3 3 . 4 . . . . . . . . . . Spaces Dug 64 | . . . . . . . . . 1 . 2 . . . 2 1 23 2 . 2 5 2 15 3 6 . Terrain Destroyed 983 | . . . . . . . 7 . 7 12 348 11 7 6 24 5 120 17 . 4 256 4 29 22 15 89 Melee . | . . . . . . . . . . . . . . . . . . . . . . . . . . . Projectile 212 | . . . . . . . 7 . 3 3 . . . . 20 3 50 11 . 3 18 2 26 16 13 37 AOE 674 | . . . . . . . . . . . 326 . . . . . 65 . . . 233 . . . . 50 Terrain Rammed . | . . . . . . . . . . . . . . . . . . . . . . . . . . . Walls Destroyed . | . . . . . . . . . . . . . . . . . . . . . . . . . . . Machines Disabled . | . . . . . . . . . . . . . . . . . . . . . . . . . . . Actions | -11 -10 -10 -9 -9 -9 -8 -8 -8 -8 -8 -6 -6 -6 -6 -6 -5 -5 -5 -5 -5 -4 -3 -3 -2 -2 -2 --------- Run | Yrd Mat Min Mat Min Exi Min Mat Sto Rec Scr Fac Low Low Zio Dee Pro Fac Gar Fac DSF Fac Res Qua Res Tes Frg Total 39450 | 58 1405 556 822 618 1281 553 2146 1571 841 3117 5080 962 1062 1189 1203 900 2956 931 451 344 2050 1101 1753 1649 1671 3180 Wait 4363 | 9 165 . 14 75 236 3 264 167 72 318 476 7 81 104 14 4 607 109 69 49 178 126 276 271 196 473 Move 32133 | 38 1110 539 682 531 918 516 1696 1294 740 2584 4284 908 939 962 1141 878 2168 689 377 240 1750 921 1365 1264 1383 2216 Hop 208 | . . . . . 1 6 18 21 7 3 34 . 1 1 . . 25 . . . 17 6 15 18 8 27 Pick Up 46 | . 5 . 3 1 10 . . 1 . 7 6 . . . . 1 . . . . 2 1 1 1 . 7 Fast Attach 67 | 8 2 . 3 . 10 1 3 1 1 5 5 . 1 3 . . 4 . . . 1 . 1 3 7 8 Attach 11 | . 2 1 . . . . 1 . . . 3 1 . . . 1 . . . . . 1 . . . 1 Detach 3 | . . . . . . . 1 . . . . 2 . . . . . . . . . . . . . . Swap 199 | . 8 . 10 2 4 3 10 6 4 15 20 2 . 2 16 . 5 . . 1 7 7 11 14 13 39 Drop 107 | . 4 . 6 1 25 1 5 1 1 12 5 1 . 3 3 . 7 . . . 3 1 2 5 7 14 Fire 1500 | 3 72 8 59 3 57 9 112 56 15 114 183 22 29 74 24 11 105 55 2 11 64 22 58 54 34 244 Melee 1 | . . . 1 . . . . . . . . . . . . . . . . . . . . . . . Ram . | . . . . . . . . . . . . . . . . . . . . . . . . . . . Kick . | . . . . . . . . . . . . . . . . . . . . . . . . . . . Crush 17 | . . 2 10 5 . . . . . . . . . . . . . . . . . . . . . . Escape Stasis 132 | . . . . . . . . 6 . . . . . . . . . 54 . 36 . . . . . 36 Rewire 17 | . . . . . 1 . . . . 1 . . . . . . . 15 . . . . . . . . Trap . | . . . . . . . . . . . . . . . . . . . . . . . . . . . Miscellaneous 646 | . 37 6 34 . 19 14 36 18 1 58 64 19 11 40 5 5 35 9 3 7 28 16 24 19 23 115 Route ------- -11/Scrapyard -10/Materials (discovered 5 exits: *Mat x3 / [*Min x2]) -10/Mines (discovered 2 exits: *Mat x2) -9/Materials (discovered 4 exits: *Mat x2 / *Min x2) -9/Mines (discovered 3 exits: *Mat x2 / *Exi) -9/Exiles -8/Mines (discovered 2 exits: *Mat x2) -8/Materials (discovered 3 exits: [*Fac x2] / *Sto) -8/Storage (discovered 2 exits: [*Fac] / *Rec) -8/Recycling (discovered 2 exits: *Fac / *Scr) -8/Scraptown -6/Factory (discovered 5 exits: *Fac x3 / *Low x2) -6/Lower Caves -6/Lower Caves (discovered 2 exits: *Fac / *Zio) -6/Zion (discovered 2 exits: *Dee / [*Pro]) -6/Deep Caves -5/Proximity Caves -5/Factory (discovered 7 exits: *Fac x2 / *Upp x2 / *Ext x2 / Gar) -5/Garrison (discovered 3 exits: *Fac x3) -5/Factory -5/DSF -4/Factory (discovered 2 exits: *Res x2) -3/Research (discovered 2 exits: *Res / *Qua) -3/Quarantine -2/Research (discovered 2 exits: *Tes x2) -2/Testing (discovered 3 exits: [*Acc] / [*Sec] / *Frg) -2/Protoforge (discovered 1 exit: [*Acc]) History --------- Turn | Location | Event 1 | -11/Scrapyard | Upgraded with Power slot (x1) 1 | -11/Scrapyard | Upgraded with Propulsion slot (x1) 1 | -11/Scrapyard | Upgraded with Utility slot (x1) 1 | -11/Scrapyard | Upgraded with Weapon slot (x1) 2 | -11/Scrapyard | Met Revision 17 23 | -11/Scrapyard | Discovered new exit (range 16) 61 | -11/Scrapyard | Entered Materials 189 | -10/Materials | Discovered new exit (range 6) 258 | -10/Materials | Discovered new exit (range 10) 273 | -10/Materials | Discovered new exit (range 13) 303 | -10/Materials | Build established: Mutant 336 | -10/Materials | Reached level 2 392 | -10/Materials | Discovered new exit (range 4) 492 | -10/Materials | Discovered new exit (range 3) 516 | -10/Materials | Reached level 3 858 | -10/Materials | Upgraded with Propulsion slot (x1) 858 | -10/Materials | Upgraded with Utility slot (x1) 858 | -10/Materials | Upgraded with Weapon slot (x1) 869 | -10/Materials | Reached level 4 1384 | -10/Materials | Upgraded with Utility slot (x1) 1614 | -10/Materials | Build established: Scavenger-Tank 1632 | -10/Materials | Entered Mines 1642 | -10/Mines | Reached level 5 1828 | -10/Mines | Discovered new exit (range 8) 1849 | -10/Mines | Learned Materials non-interactive machine intel 1884 | -10/Mines | Learned 8 Materials zone layouts 1886 | -10/Mines | Discovered new exit (range 10) 2498 | -10/Mines | Upgraded with Utility slot (x1) 2520 | -10/Mines | Assisted by bots powering up and referring to "LRC-V3" 2531 | -10/Mines | Entered Materials 2531 | -9/Materials | Accompanied by 5 allies 2532 | -9/Materials | Identified exit to Materials 2533 | -9/Materials | Loaded intel: 28 non-interactive machine locations 2533 | -9/Materials | Reached level 6 2536 | -9/Materials | Led the pair of lost Derelicts to an unsafe place 2714 | -9/Materials | Discovered new exit (range 6) 2721 | -9/Materials | Reached level 7 2879 | -9/Materials | Reached level 8 2895 | -9/Materials | Upgraded with Weapon slot (x1) 2931 | -9/Materials | First assault squad dispatched 3135 | -9/Materials | Discovered exit to Materials (range 15) 3319 | -9/Materials | Discovered new exit (range 13) 3322 | -9/Materials | Reached level 9 3632 | -9/Materials | Destroyed 7 combat bots 3671 | -9/Materials | Upgraded with Propulsion slot (x1) 3725 | -9/Materials | Sterilization system engaged 3725 | -9/Materials | Non-combat units ordered to evacuate 3825 | -9/Materials | Combat units ordered to evacuate 3891 | -9/Materials | Entered Mines 3893 | -9/Mines | Reached level 10 3926 | -9/Mines | Found the Drone Emporium 3941 | -9/Mines | Found Prototype Device 3941 | -9/Mines | Identified Splice Drone Bay 3964 | -9/Mines | Build established: Tank 3981 | -9/Mines | Discovered exit to Materials (range 9) 4057 | -9/Mines | Received a Rocket Launcher from a helpful Derelict 4111 | -9/Mines | Deemed a non-threat by the Exiles lab entrance 4111 | -9/Mines | Discovered new exit (range 6) 4148 | -9/Mines | Discovered exit to Materials (range 9) 4246 | -9/Mines | Learned location of Zion (-6) 4319 | -9/Mines | Learned location of Storage (-8) 4439 | -9/Mines | Met a Derelict who couldn't figure out how to use a Trap Extractor 4759 | -9/Mines | Entered Exiles 4759 | -9/Exiles | Accompanied by 6 allies 4794 | -9/Exiles | Met 8R-AWN 4820 | -9/Exiles | Met EX-HEX 4874 | -9/Exiles | Met EX-DEC 5007 | -9/Exiles | Met EX-BIN 5022 | -9/Exiles | Aligned with FarCom system 5024 | -9/Exiles | Given EX-Vault access code 5057 | -9/Exiles | Opened EX-Vault 5095 | -9/Exiles | Warned to stay clear of 0b10 Research branches 5216 | -9/Exiles | Build established: Mutant 5536 | -9/Exiles | Attacked by the Exiles 5622 | -9/Exiles | Lost 5 allies 5665 | -9/Exiles | Core integrity fell below 50% 5681 | -9/Exiles | Destroyed 8R-AWN 5927 | -9/Exiles | Found Flying Fortress v7 5933 | -9/Exiles | Found Superbattery 6000 | -9/Exiles | Destroyed EX-DEC 6022 | -9/Exiles | Destroyed EX-BIN 6036 | -9/Exiles | Destroyed EX-HEX 6039 | -9/Exiles | Found Prototype Processor 6039 | -9/Exiles | Identified Exp. Core Analyzer 6046 | -9/Exiles | Found Prototype Device 6046 | -9/Exiles | Identified System Purifier 6282 | -9/Exiles | Found Deploy-a-Sentry 6332 | -9/Exiles | Discovered new exit (range 12) 6337 | -9/Exiles | Build established: Scavenger-Gunner 6337 | -9/Exiles | Stole three prototypes: Flying Fortress v7, Superbattery, Deploy-a-Sentry 6337 | -9/Exiles | Entered Mines 6365 | -8/Mines | Discovered exit to Materials (range 7) 6536 | -8/Mines | Discovered exit to Materials (range 12) 6646 | -8/Mines | Entered Materials 6648 | -8/Materials | Reached level 11 6684 | -8/Materials | Reached level 12 6718 | -8/Materials | Met 7R-MNS 6725 | -8/Materials | Garrison activated, responded to threat 6729 | -8/Materials | Discovered new exit (range 16) 6886 | -8/Materials | Attacked by 7R-MNS 7224 | -8/Materials | 7R-MNS lamented failing the tripod run 7224 | -8/Materials | Destroyed 7R-MNS 7234 | -8/Materials | Upgraded with Utility slot (x1) 7234 | -8/Materials | Found Prototype Device 7234 | -8/Materials | Identified Thermal Barrier 7237 | -8/Materials | Upgraded with Utility slot (x1) 7239 | -8/Materials | Found Prototype Device 7239 | -8/Materials | Identified Exp. Focal Shield 7275 | -8/Materials | Identified exit to Storage 7319 | -8/Materials | Discovered new exit (range 19) 7425 | -8/Materials | Central database locked down 7487 | -8/Materials | Reached level 13 7690 | -8/Materials | Destroyed 7 combat bots 7846 | -8/Materials | First assault squad dispatched 7975 | -8/Materials | Sterilization system engaged 7975 | -8/Materials | Non-combat units ordered to evacuate 8075 | -8/Materials | Combat units ordered to evacuate 8101 | -8/Materials | Entered Storage 8103 | -8/Storage | Reached level 14 8365 | -8/Storage | Build established: Hacker-Gunner 8397 | -8/Storage | Used back door to open Recycling access 8397 | -8/Storage | Discovered new exit (range 5) 8554 | -8/Storage | Discovered new exit (range 15) 8670 | -8/Storage | Met 01-MTF 8736 | -8/Storage | Assisted by bots powering up and referring to "LRC-V3" 9037 | -8/Storage | Build established: Commander-Gunner 9119 | -8/Storage | Entered Recycling 9119 | -8/Recycling | Accompanied by 12 allies (01-MTF) 9121 | -8/Recycling | Reached level 15 9129 | -8/Recycling | Scanned before Scraplab entrance 9143 | -8/Recycling | Found Prototype Energy Gun 9143 | -8/Recycling | Identified KN-7UR's Autopenetrator 9166 | -8/Recycling | Entered Scraplab 9170 | -8/Recycling | Discovered new exit (range 3) 9361 | -8/Recycling | Discovered new exit (range 14) 9490 | -8/Recycling | Upgraded with Utility slot (x1) 9616 | -8/Recycling | Entered Scraptown 9616 | -8/Scraptown | Accompanied by 11 allies 9641 | -8/Scraptown | Heard Great Nut preacher, LISTEN AND RECITE! 9702 | -8/Scraptown | Visited Science Testing Area 9707 | -8/Scraptown | Visited SPCMW 9713 | -8/Scraptown | Visited Spacefarers 9742 | -8/Scraptown | Visited Junk Repository 9756 | -8/Scraptown | Visited Junk Repository 9778 | -8/Scraptown | Visited Cyclists 9860 | -8/Scraptown | DAS Turret deployed 10147 | -8/Scraptown | Attacked by Scraptown defenders 10147 | -8/Scraptown | Allies destroyed Triborg 10239 | -8/Scraptown | Lost 10 allies 10319 | -8/Scraptown | Destroyed 40 combat bots 10465 | -8/Scraptown | Destroyed 7 combat bots 10482 | -8/Scraptown | Build established: Hacker-Gunner 10535 | -8/Scraptown | Destroyed Optimus 10624 | -8/Scraptown | Destroyed 20 combat bots 10669 | -8/Scraptown | Visited Analyses Database 10680 | -8/Scraptown | Visited Scrapoid Pod Storage 10688 | -8/Scraptown | Visited Infowarlord's Domain 10695 | -8/Scraptown | Visited Science Guys 10711 | -8/Scraptown | Visited Scrap Suit Storage 10718 | -8/Scraptown | Visited Research Penetration Think Tank 10723 | -8/Scraptown | Visited Abandonware Association 10738 | -8/Scraptown | Visited A0-MCA Data Center 10748 | -8/Scraptown | Visited Chapter 10 10757 | -8/Scraptown | Visited Modified Component R&D 10910 | -8/Scraptown | Discovered new exit (range 5) 10917 | -8/Scraptown | Destroyed 9 combat bots 10961 | -8/Scraptown | Found Prototype Processor 10961 | -8/Scraptown | Identified Expert System 11175 | -8/Scraptown | Found Scrapoid Pod 11338 | -8/Scraptown | Scrapoid Pod released 08S05-D (x5) 11354 | -8/Scraptown | Destroyed 8 combat bots 11402 | -8/Scraptown | Found System Spiker 11405 | -8/Scraptown | System corruption reached 10% 11581 | -8/Scraptown | Found Exp. Signal Interpreter 11627 | -8/Scraptown | Entered Factory 11627 | -6/Factory | Accompanied by 4 allies 11629 | -6/Factory | Reached level 16 11633 | -6/Factory | Upgraded with Propulsion slot (x1) 11633 | -6/Factory | Identified exit to Lower Caves 11658 | -6/Factory | Build established: Scavenger-Gunner 11888 | -6/Factory | Garrison activated, responded to threat 11987 | -6/Factory | Fabricated Wave Gun? 12010 | -6/Factory | Reached level 17 12188 | -6/Factory | Discovered new exit (range 5) 12299 | -6/Factory | Discovered new exit (range 15) 12536 | -6/Factory | Spotted B-75 Beast 12547 | -6/Factory | Reached level 18 12547 | -6/Factory | Destroyed B-75 Beast 12585 | -6/Factory | Discovered new exit (range 17) 12647 | -6/Factory | Garrison activated, responded to threat 12674 | -6/Factory | Cargo convoy interrupted 12960 | -6/Factory | Reached level 19 13027 | -6/Factory | First assault squad dispatched 13201 | -6/Factory | Upgraded with Utility slot (x1) 13227 | -6/Factory | Found Exp. Signal Interpreter 13258 | -6/Factory | Identified exit to Factory 13389 | -6/Factory | Destroyed 9 combat bots 13540 | -6/Factory | Fabricated Nuclear Pulse Thruster (x2) 13578 | -6/Factory | Reached level 20 13710 | -6/Factory | Fabricated Nuclear Pulse Thruster (x2) 13731 | -6/Factory | Build established: Scavenger-Scout 13954 | -6/Factory | Destroyed 9 combat bots 13975 | -6/Factory | High security lockdown imminent 14032 | -6/Factory | Destroyed 10 combat bots 14055 | -6/Factory | High security lockdown engaged 14176 | -6/Factory | Destroyed 15 combat bots 14216 | -6/Factory | Reached level 21 14258 | -6/Factory | Entered Lower Caves 14268 | -6/Lower Caves | Learned location of 1 exit from Factory 14275 | -6/Lower Caves | Destroyed 10 combat bots 14433 | -6/Lower Caves | Learned location of 1 exit from Factory 14520 | -6/Lower Caves | Discovered new exit (range 15) 14530 | -6/Lower Caves | Identified exit to Lower Caves 14563 | -6/Lower Caves | Destroyed 8 combat bots 14573 | -6/Lower Caves | Entered another Lower Caves area 14611 | -6/Lower Caves | Discovered exit to Factory (range 16) 14703 | -6/Lower Caves | Found DCF Scrap (13 items) 14707 | -6/Lower Caves | Identified exit to Zion 14708 | -6/Lower Caves | Attracted the attention of an 0b10 base 14710 | -6/Lower Caves | Destroyed 10 combat bots 14722 | -6/Lower Caves | Learned Research emergency access door positions 14722 | -6/Lower Caves | Learned Extension stockpile data 14722 | -6/Lower Caves | Learned Research garrison access intel 14933 | -6/Lower Caves | Attracted the attention of an 0b10 checkpoint 14974 | -6/Lower Caves | Entered Zion 14988 | -6/Zion | Discovered new exit (range 14) 14998 | -6/Zion | System corruption cleaned by Quarantine Array 14999 | -6/Zion | Attacked by Zionites 14999 | -6/Zion | Spotted I0-UTM(B) 14999 | -6/Zion | Spotted WJ-8Q4(B) 15022 | -6/Zion | Destroyed I0-UTM(B) 15028 | -6/Zion | Destroyed WJ-8Q4(B) 15126 | -6/Zion | Destroyed Imprinter 15129 | -6/Zion | Extracted access codes from Imprinter's data core 15301 | -6/Zion | Learned location of 1 exit from Factory 15331 | -6/Zion | Found Prototype Device 15331 | -6/Zion | Identified Bomb Factory No. 2 15409 | -6/Zion | Discovered new exit (range 5) 15562 | -6/Zion | Saw the warning signs outside the Deep Caves entrance 15562 | -6/Zion | Identified exit to Deep Caves 15563 | -6/Zion | Entered Deep Caves 15671 | -6/Deep Caves | Destroyed 9 combat bots 15738 | -6/Deep Caves | Spotted AG-88679 15742 | -6/Deep Caves | Spotted AG-19229 15815 | -6/Deep Caves | Found Prototype Protection 15815 | -6/Deep Caves | Identified Zio. Weapon Casing 15959 | -6/Deep Caves | Discovered new exit (range 6) 15960 | -6/Deep Caves | Identified exit to Proximity Caves 15960 | -6/Deep Caves | Entered Proximity Caves 15962 | -5/Proximity Caves | Reached level 22 15963 | -5/Proximity Caves | Spotter reported a threat 15975 | -5/Proximity Caves | Build established: Hacker-Scout 15996 | -5/Proximity Caves | Learned Factory emergency access door positions 16076 | -5/Proximity Caves | Upgraded with Utility slot (x1) 16077 | -5/Proximity Caves | Found Alien Artifact 16084 | -5/Proximity Caves | Discovered exit to Factory (range 9) 16124 | -5/Proximity Caves | Spotted B-75 Beast 16128 | -5/Proximity Caves | Destroyed B-75 Beast 16228 | -5/Proximity Caves | Entered Factory 16229 | -5/Factory | Identified exit to Factory 16229 | -5/Factory | Identified exit to Upper Caves 16229 | -5/Factory | Identified exit to Extension 16770 | -5/Factory | Fabricated Exp. Q-thruster (x1) 16885 | -5/Factory | Cargo convoy interrupted 17074 | -5/Factory | Discovered exit to Factory (range 5) 17093 | -5/Factory | Reached level 23 17194 | -5/Factory | Destroyed 17 combat bots 17243 | -5/Factory | Fabricated C-57 Dissector (x3) 17263 | -5/Factory | Fabricated C-57 Dissector? 17310 | -5/Factory | Destroyed 11 combat bots 17428 | -5/Factory | First assault squad dispatched 17475 | -5/Factory | Fabricated C-57 Dissector? 17475 | -5/Factory | Identified exit to Garrison 17478 | -5/Factory | Entered Garrison 17478 | -5/Garrison | Accompanied by 11 allies 17481 | -5/Garrison | Triggered checkpoint 17484 | -5/Garrison | Garrison Relay disabled 17484 | -5/Garrison | Reached level 24 17490 | -5/Garrison | Triggered checkpoint 17492 | -5/Garrison | Triggered checkpoint 17492 | -5/Garrison | Triggered checkpoint 17493 | -5/Garrison | Triggered checkpoint 17495 | -5/Garrison | P-70 Sage assimilated allied Dissector 6h 17505 | -5/Garrison | Discovered new exit (range 8) 17506 | -5/Garrison | Identified exit to Factory 17510 | -5/Garrison | Triggered checkpoint 17551 | -5/Garrison | Destroyed 7 combat bots 17563 | -5/Garrison | Garrison Relay disabled 17636 | -5/Garrison | Triggered checkpoint 17636 | -5/Garrison | Garrison Relay disabled 17686 | -5/Garrison | Discovered exit to Factory (range 9) 17688 | -5/Garrison | Garrison Relay disabled 17719 | -5/Garrison | Learned Factory security intel 17749 | -5/Garrison | Garrison Relay disabled 17752 | -5/Garrison | Triggered checkpoint 17757 | -5/Garrison | Discovered exit to Factory (range 16) 17852 | -5/Garrison | Entered Factory 17852 | -5/Factory | Accompanied by 7 allies 17898 | -5/Factory | Identified exit to DSF 17967 | -5/Factory | Entered DSF 17967 | -5/DSF | Accompanied by 7 allies 17981 | -5/DSF | Discovered exit to Factory (range 15) 17992 | -5/DSF | Additional patrols routed to DSF 17994 | -5/DSF | Reached level 25 18020 | -5/DSF | Lost 3 allies 18112 | -5/DSF | Entered Factory 18112 | -4/Factory | Accompanied by 4 allies 18113 | -4/Factory | Identified exit to Research 18115 | -4/Factory | Discovered exit to Research (range 13) 18311 | -4/Factory | Reached level 26 18362 | -4/Factory | First assault squad dispatched 18407 | -4/Factory | Specialist reinforcements revealed to be Infiltrators 18505 | -4/Factory | Garrison activated, responded to threat 18563 | -4/Factory | Destroyed 11 combat bots 18604 | -4/Factory | Destroyed 8 combat bots 18672 | -4/Factory | Entered Research 18672 | -3/Research | Accompanied by 1 ally 18674 | -3/Research | Loaded intel: 3 garrison access locations 18674 | -3/Research | Reached level 27 18702 | -3/Research | Discovered new exit (range 12) 18703 | -3/Research | Identified exit to Research 18706 | -3/Research | Upgraded with Utility slot (x1) 18815 | -3/Research | Reached level 28 18919 | -3/Research | Spotted B-90 Cyclops 18922 | -3/Research | First assault squad dispatched 18953 | -3/Research | Discovered new exit (range 8) 18960 | -3/Research | Destroyed B-90 Cyclops 18967 | -3/Research | Identified exit to Quarantine 18982 | -3/Research | Entered Quarantine 18982 | -3/Quarantine | Accompanied by 1 ally 18983 | -3/Quarantine | Spotted Alpha 7 18997 | -3/Quarantine | Destroyed Alpha 7 19000 | -3/Quarantine | Found Prototype Device 19000 | -3/Quarantine | Identified Exp. ECM Suite 19051 | -3/Quarantine | Found Alien Artifact 19111 | -3/Quarantine | Discovered exit to Research (range 13) 19321 | -3/Quarantine | Cryocooling Duct disabled 19336 | -3/Quarantine | Ambient heat levels rising (+20) 19336 | -3/Quarantine | Non-combat units ordered to evacuate 19476 | -3/Quarantine | Destroyed 9 combat bots 19540 | -3/Quarantine | Found Alien Artifact 19540 | -3/Quarantine | Identified Terrabomb 19540 | -3/Quarantine | Used Terrabomb 19566 | -3/Quarantine | Entered Research 19568 | -2/Research | Reached level 29 19568 | -2/Research | Reached level 30 19590 | -2/Research | Discovered new exit (range 19) 19658 | -2/Research | Destroyed 14 combat bots 19663 | -2/Research | Identified exit to Testing 19682 | -2/Research | Garrison activated, responded to threat 19797 | -2/Research | Found Prototype Device 19797 | -2/Research | Identified Femtoactuators 19821 | -2/Research | Reached level 31 19887 | -2/Research | Upgraded with Utility slot (x1) 20142 | -2/Research | Spotted B-90 Cyclops 20146 | -2/Research | Entered Testing 20161 | -2/Testing | Found Prototype Energy Cannon 20161 | -2/Testing | Identified Hpw. Disruptor Cannon 20183 | -2/Testing | Found Prototype Energy Cannon 20183 | -2/Testing | Identified Disintegrator 20198 | -2/Testing | Spotted Striker 20198 | -2/Testing | Spotted Striker 20213 | -2/Testing | Found Prototype Device 20213 | -2/Testing | Identified Exp. Phase Shifter 20360 | -2/Testing | Discovered new exit (range 16) 20451 | -2/Testing | P-80 Master assimilated allied G-73 Enforcer 20454 | -2/Testing | Reached level 32 20455 | -2/Testing | P-80 Master assimilated allied G-73 Enforcer 20529 | -2/Testing | Fabricated Cld. Linear Gravjet? 20599 | -2/Testing | Found Prototype Ballistic Gun 20599 | -2/Testing | Identified Hyp. Multirail 20607 | -2/Testing | Found Prototype Device 20607 | -2/Testing | Identified Imp. Particle Accelerator 20619 | -2/Testing | Garrison activated, responded to threat 20628 | -2/Testing | Spotted PG-7VXRLHM8D5 20684 | -2/Testing | Protovariant out of control (PG-7VXRLHM8D5) 20684 | -2/Testing | Unleashed a protovariant (PG-7VXRLHM8D5) 20699 | -2/Testing | Protovariant out of control (PY-BB0ITBG7E2) 20699 | -2/Testing | Unleashed a protovariant (PY-BB0ITBG7E2) 20721 | -2/Testing | Spotted PY-BB0ITBG7E2 20728 | -2/Testing | Spotted Fortress 20737 | -2/Testing | Discovered new exit (range 5) 20737 | -2/Testing | Discovered new exit (range 6) 20737 | -2/Testing | Identified exit to Protoforge 20737 | -2/Testing | Entered Protoforge 20750 | -2/Protoforge | Spotted Hotshot 20751 | -2/Protoforge | Spotted Hotshot 20751 | -2/Protoforge | Spotted Hotshot 20751 | -2/Protoforge | Spotted Hotshot 20751 | -2/Protoforge | Spotted Hotshot 20751 | -2/Protoforge | Superfortress began startup sequence 20766 | -2/Protoforge | Spotted B-90 Cyclops 20767 | -2/Protoforge | Destroyed Hotshot 20780 | -2/Protoforge | Destroyed Hotshot 20790 | -2/Protoforge | Destroyed Hotshot 20792 | -2/Protoforge | Destroyed Hotshot 20820 | -2/Protoforge | Destroyed Hotshot 20826 | -2/Protoforge | Destroyed B-90 Cyclops 20831 | -2/Protoforge | Spotted Hotshot 20831 | -2/Protoforge | Spotted Hotshot 20831 | -2/Protoforge | Spotted Hotshot 20831 | -2/Protoforge | Spotted Hotshot 20836 | -2/Protoforge | Destroyed Hotshot 20838 | -2/Protoforge | Destroyed Hotshot 20861 | -2/Protoforge | Destroyed Hotshot 20868 | -2/Protoforge | Destroyed Hotshot 20876 | -2/Protoforge | Discovered new exit (range 9) 20930 | -2/Protoforge | Reached level 33 20986 | -2/Protoforge | Forge Plexus network access discovered 20995 | -2/Protoforge | Spotted Decapitator 20997 | -2/Protoforge | Spotted Decapitator 20998 | -2/Protoforge | Spotted Decapitator 20998 | -2/Protoforge | Spotted Decapitator 20998 | -2/Protoforge | Spotted Decapitator 21006 | -2/Protoforge | Destroyed Decapitator 21007 | -2/Protoforge | Core integrity fell below 50% 21008 | -2/Protoforge | Destroyed Decapitator 21013 | -2/Protoforge | Destroyed Decapitator 21013 | -2/Protoforge | Destroyed Decapitator 21015 | -2/Protoforge | Destroyed Decapitator 21036 | -2/Protoforge | Spotted V498-v 21036 | -2/Protoforge | Spotted V967-v 21036 | -2/Protoforge | Spotted V482-p 21044 | -2/Protoforge | Found Cep. Fieldthrust Drive 21090 | -2/Protoforge | Found Crosscalibrator 21122 | -2/Protoforge | Spotted Immortal 21122 | -2/Protoforge | Spotted Immortal 21123 | -2/Protoforge | Spotted Immortal 21135 | -2/Protoforge | Destroyed Immortal 21153 | -2/Protoforge | Destroyed Immortal 21155 | -2/Protoforge | Spotted V279-h 21156 | -2/Protoforge | Spotted V707-n 21156 | -2/Protoforge | Destroyed Immortal 21162 | -2/Protoforge | Spotted V682-o 21162 | -2/Protoforge | Spotted V846-j 21164 | -2/Protoforge | Destroyed V707-n 21171 | -2/Protoforge | Destroyed V682-o 21192 | -2/Protoforge | Destroyed 7 combat bots 21209 | -2/Protoforge | Scanned by Researcher 21237 | -2/Protoforge | First assault squad dispatched 21264 | -2/Protoforge | Spotted Decapitator 21264 | -2/Protoforge | Spotted Decapitator 21264 | -2/Protoforge | Spotted Decapitator 21317 | -2/Protoforge | Found Cep. Variable Chargecaster 21320 | -2/Protoforge | Spotted Hotshot 21320 | -2/Protoforge | Spotted Hotshot 21321 | -2/Protoforge | Found Faulty Cep. Variable Chargecaster 21389 | -2/Protoforge | Spotted Hotshot 21391 | -2/Protoforge | Spotted Hotshot 21400 | -2/Protoforge | Destroyed Hotshot 21404 | -2/Protoforge | Destroyed Hotshot 21404 | -2/Protoforge | Destroyed Hotshot 21409 | -2/Protoforge | Destroyed Hotshot 21431 | -2/Protoforge | Found Faulty Cep. Variable Chargecaster 21587 | -2/Protoforge | Spotted Immortal 21587 | -2/Protoforge | Spotted Immortal 21587 | -2/Protoforge | Spotted V564-d 21588 | -2/Protoforge | Spotted V476-j 21588 | -2/Protoforge | Spotted V869-v 21589 | -2/Protoforge | Found Cep. Beam Splitter 21679 | -2/Protoforge | Destroyed 8 combat bots 21692 | -2/Protoforge | Spotted Immortal 21692 | -2/Protoforge | Spotted Immortal 21692 | -2/Protoforge | Spotted Decapitator 21692 | -2/Protoforge | Spotted Decapitator 21692 | -2/Protoforge | Spotted Decapitator 21692 | -2/Protoforge | Spotted Decapitator 21693 | -2/Protoforge | Destroyed Decapitator 21698 | -2/Protoforge | Destroyed Decapitator 21734 | -2/Protoforge | Destroyed Decapitator 21734 | -2/Protoforge | Destroyed Decapitator 21767 | -2/Protoforge | Found Cep. Zero-point Core 21771 | -2/Protoforge | Found Cep. Zero-point Core 21782 | -2/Protoforge | Destroyed 10 combat bots 21851 | -2/Protoforge | Spotted Decapitator 21854 | -2/Protoforge | Destroyed Decapitator 21865 | -2/Protoforge | Spotted Overlord 21875 | -2/Protoforge | Destroyed Overlord 21878 | -2/Protoforge | Found Prototype Device 21878 | -2/Protoforge | Identified Exp. Weapon Cycler 21881 | -2/Protoforge | Found Prototype Device 21881 | -2/Protoforge | Identified Exp. Transmission Jammer 21885 | -2/Protoforge | Found Prototype Device 21885 | -2/Protoforge | Identified Exp. EM Shield 21888 | -2/Protoforge | Found Prototype Processor 21888 | -2/Protoforge | Identified Exp. Targeting Computer 21891 | -2/Protoforge | Spotted Hotshot 21891 | -2/Protoforge | Spotted Hotshot 21891 | -2/Protoforge | Spotted Hotshot 21891 | -2/Protoforge | Spotted Hotshot 21891 | -2/Protoforge | Spotted Hotshot 21893 | -2/Protoforge | Spotted Hotshot 21893 | -2/Protoforge | Spotted Hotshot 21893 | -2/Protoforge | Spotted Hotshot 21893 | -2/Protoforge | Destroyed Hotshot 21895 | -2/Protoforge | Spotted Hotshot 21896 | -2/Protoforge | Destroyed Hotshot 21897 | -2/Protoforge | Spotted Hotshot 21903 | -2/Protoforge | Destroyed Hotshot 21907 | -2/Protoforge | Destroyed Hotshot 21912 | -2/Protoforge | Destroyed Hotshot 21916 | -2/Protoforge | Destroyed Hotshot 21930 | -2/Protoforge | Destroyed Hotshot 21935 | -2/Protoforge | Destroyed Hotshot 21938 | -2/Protoforge | Destroyed Hotshot 21959 | -2/Protoforge | Destroyed 10 combat bots 21959 | -2/Protoforge | Destroyed Hotshot 22026 | -2/Protoforge | Reached level 34 22160 | -2/Protoforge | Crushed by falling debris 22182 | -2/Protoforge | Spotted AP7-3 22182 | -2/Protoforge | Spotted AP7-3 22187 | -2/Protoforge | Destroyed 24 combat bots 22260 | -2/Protoforge | Destroyed AP7-3 22287 | -2/Protoforge | Destroyed AP7-3 22296 | -2/Protoforge | Fabricated C-57 Dissector? 22314 | -2/Protoforge | System corruption reached 10% 22326 | -2/Protoforge | Spotted Hotshot 22334 | -2/Protoforge | Spotted Executioner 22337 | -2/Protoforge | Spotted Striker 22339 | -2/Protoforge | Self-destructed Last Messages --------------- 22330_ Zio. Phaser-S destroyed. 22330_ Dissector 9a held in stasis. 22331_ Superfortress assembles P-80 Master. 22332_ P-80 Master destroyed. 22332_ Switching to secondary target: Superfortress. 22332_ G-73 Enforcer unfolds itself. 22332_ Dissector 9a suffers critical hit (Burn). 22334_ Superfortress assembles Executioner. 22334_ Slug penetrates Machine. 22334_ Slug penetrates Superfortress. 22334_ Dissector 9a held in stasis. 22336_ C-65 Expert Stasis Projector severed. 22336_ Penetrated by Slug. 22337_ System corrupted: Component data lost. 22337_ Superfortress assembles Striker. 22337_ Knocked back. 22337_ Slug penetrates Dissector 9a. 22337_ Dissector 9a destroyed. 22338_ K-01 Serf collects debris. Map ----- +----------------------------------------------------+ | ??????????????# #??????????? | | ??????????????# #??????????? | | ??????????????# #??????????? | | ??????????????######## ########??????????? | | ?????????????????????# #?????????????????? | | ?????????????????????# #?????????????????? | | ?????????????????????# #?????????????????? | | ?????????????????????# #?????????????????? | | ?????????????????????## ##?????????????????? | | ??????????????????????# #??????????????????? | | ??????????????######### #########??????????? | | ??????????????#"""""""" """"""""#??????????? | | ??????????????# """" """" #??????????? | | ##???######???# "" k "" #???######?? | | "#???#""""#???# T "" #???#""""#?? | | =#####[[[[##### ##### !!!### | | | | % c | | | FFFc | | ? ? FFFc | | ? ? gEFFFK= | | *= | | !"""##====##### ##### ### | | "#####""""#???#"""""""""" """"""""""#???#""""#?? | | ##???######???#""""""""" %"""""""""""#???######?? | | ??????????????#""""""""""@%"""""""""""#??????????? | | ??????????????###########;%############??????????? | | ????????????????????????####?????????????????????? | | ?????????????????????????????????????????????????? | | ?????????????????????????????????????????????????? | | ?????????????????################################# | | ?????????????????# | | ?????????????????# "" "" " | | ?????????????????# """" " "" "" | | ?????????????????# "" " "" """ """" "" | | ?????????????????# """ """" """ " """ | | ?????????????????# "" " | | ?????????????????# " "" """ " | | ?????????????????# "" "" """" " | | ?????????????????# " "" " | | ?????????????????# " "" " """ " | | ?????????????????# " " "" """""" """ | | ?????????????????# "" "?" | | ?????????????????# "" "" """ | | ?????????????????# """"" "" " """" " | | ?????????????????# " " " | | ?????????????????# " " "" """" " " | | ?????????????????# """"" "" "" | | ?????????????????# " "" " """""" | | ?????????????????# """" "" """"""""" | +----------------------------------------------------+ Best States ------------- Heat Dissipation 153 Energy Generation 97 Energy Capacity 2000 Matter Stores 300 Matter Capacity 300 Sight Range 19 Robot Scan Range 20 Terrain Scan Range 16 Terrain Scan Density 10 Power Amplification 30 Additional Mass Support 20 Armor Coverage 600 Resistance: KI 50 Resistance: TH 95 Resistance: EX 20 Resistance: EM 20 Resistance: I 20 Resistance: S 20 Resistance: P 20 Power Shielding 90 Weapon Cycling 30 Evasion (%) 68 Core Analysis 8 Armor Integrity Analysis 40 Recoil Reduction 4 Energy Filtering 50 Particle Charging 40 Offensive Hacking 25 Defensive Hacking 10 Item Schematics ----------------- Wave Gun | -8/Materials | Scanalyzed Field Propulsion Array | -6/Factory | Hacked Nuclear Pulse Thruster | -6/Factory | Hacked Force Field | -6/Factory | Extracted Adv. Remote Force Field | -6/Factory | Downloaded Imp. System Restoration Module | -6/Zion | Archive Tesla Rifle | -6/Zion | Archive Imp. Corruption Screen | -6/Zion | Archive Lgt. Fission Core | -6/Zion | Archive Centrium Wheel | -6/Zion | Archive Flexi-carbon Leg | -6/Zion | Archive KE Penetrator | -6/Zion | Archive Hvy. Plasma Cannon | -6/Zion | Archive Adv. Recoil Stabilizer | -6/Zion | Archive Cloaking Device | -6/Zion | Archive Enh. Gauss Cannon | -6/Zion | Archive Hyp. Coil Gun | -6/Zion | Archive Hvy. Pick | -6/Zion | Archive Antimatter Reactor | -6/Zion | Archive Exp. Propulsion Shielding | -3/Quarantine | Archive Cld. Linear Gravjet | -2/Testing | Hacked Exp. Q-thruster | -2/Testing | Hacked Cld. Antigrav System | -2/Protoforge | Archive Imp. Energy Well | -2/Protoforge | Archive Hvy. Tesla Rifle | -2/Protoforge | Archive Robot Schematics ------------------ R-06 Scavenger | -6/Zion | Archive E-15 Imp | -6/Zion | Archive B-48 Gladiator | -6/Zion | Archive C-57 Dissector | -6/Zion | Archive Fabricated ------------ Wave Gun | x2 | -6/Factory Nuclear Pulse Thruster | x2 | -6/Factory Nuclear Pulse Thruster | x2 | -6/Factory Exp. Q-thruster | x1 | -5/Factory | Preloaded C-57 Dissector | x3 | -5/Factory C-57 Dissector | x3 | -5/Factory C-57 Dissector | x3 | -5/Factory Cld. Linear Gravjet | x1 | -2/Testing C-57 Dissector | x3 | -2/Protoforge Repaired ---------- Nothing Alien Tech Used ----------------- Terrabomb Achievements -------------- None Challenges ------------ None RPGLIKE | -11 -10 -10 -9 -9 -9 -8 -8 -8 -8 -8 -6 -6 -6 -6 -6 -5 -5 -5 -5 -5 -4 -3 -3 -2 -2 -2 --------- Run | Yrd Mat Min Mat Min Exi Min Mat Sto Rec Scr Fac Low Low Zio Dee Pro Fac Gar Fac DSF Fac Res Qua Res Tes Frg Levels Raised 33 | . 3 1 4 1 . . 3 1 1 . 6 . . . . 1 1 1 . 1 1 2 . 3 1 2 XP Earned 53922 | 4000 5201 1075 7099 326 117 1045 4451 1460 363 92 8967 311 400 82 167 653 2515 1317 36 385 2552 2011 1034 4046 1418 2799 XP Spent 50435 | 3950 3600 1400 3910 . . . 9050 . 2940 150 5875 700 . . . 2900 2000 . . . 2850 3800 1050 4600 1600 60 Upgrades 78 | 12 5 1 8 . . . 17 . 3 1 10 2 . . . 1 6 . . . 4 2 1 2 1 2 Power Slot 1 | 1 . . . . . . . . . . . . . . . . . . . . . . . . . . Propulsion Slot 4 | 1 1 . 1 . . . . . . . 1 . . . . . . . . . . . . . . . Utility Slot 11 | 1 2 1 . . . . 2 . 1 . 1 . . . . 1 . . . . . 1 . 1 . . Weapon Slot 3 | 1 1 . 1 . . . . . . . . . . . . . . . . . . . . . . . Core Integrity 2 | . . . . . . . . . . . . . . . . . . . . . . . . . . 2 Heat Dissipation 15 | 5 . . 3 . . . 5 . 2 . . . . . . . . . . . . . . . . . Energy Generation 4 | . . . 1 . . . . . . . . 1 . . . . . . . . 1 . 1 . . . Mass Support 4 | . 1 . . . . . . . . . . . . . . . . . . . . 1 . 1 1 . Inventory Capacity 4 | 3 . . . . . . . . . . 1 . . . . . . . . . . . . . . . Sight Range 3 | . . . . . . . 3 . . . . . . . . . . . . . . . . . . . Sensor Range 10 | . . . . . . . . . . . 7 . . . . . 3 . . . . . . . . . Ranged Accuracy 4 | . . . 2 . . . 2 . . . . . . . . . . . . . . . . . . . Hack Attack % 3 | . . . . . . . 3 . . . . . . . . . . . . . . . . . . . Hack Defense % 2 | . . . . . . . 2 . . . . . . . . . . . . . . . . . . . KI Resistance % 4 | . . . . . . . . . . 1 . . . . . . 2 . . . 1 . . . . . TH Resistance % 4 | . . . . . . . . . . . . 1 . . . . 1 . . . 2 . . . . . Protomatter Created 17114 | . 434 27 248 . 114 107 915 776 101 2540 2418 314 331 160 194 93 1151 345 65 239 1346 294 279 1182 649 2792 Integrity Restored 9869 | . 691 77 552 . 396 321 593 140 6 1071 1054 323 197 269 60 57 633 153 42 109 322 61 133 289 53 2267 Core 7136 | . 521 51 256 . 396 321 288 84 . 738 806 195 141 208 46 25 434 113 29 84 191 46 99 243 39 1782 Parts 2733 | . 170 26 296 . . . 305 56 6 333 248 128 56 61 14 32 199 40 13 25 131 15 34 46 14 485 Protomatter Decayed 11297 | . 154 . 350 . 12 . 709 554 99 1602 1316 153 262 65 171 73 897 812 50 63 1168 121 163 504 630 1369 Game ------ Seed SubdwellerSpikedMantle Manual? 0 Play Time 04:39:09 Cumulative 413.2 hours Start 2025.10.15 @ 12:20:30 End 2025.10.17 @ 09:12:16 Sessions 7 Manual Loads 0 Difficulty Adventurer Special Mode Winter2019/RPGLIKE Game No. 153 Rogue 0 Adventurer 153 Explorer 0 Win Type - Total 16 Types 3/3/3/3/1/0/0/1/1/1 Lore% 92 Gallery% 83 Achievement% 82 Wizard Run 0 Options --------- Layout 2 ASCII 0 Keyboard 0 Movement Numpad Keybinds 0 Fullscreen 2 Font 24/Smallcaps Map View 50x44 Zoom Use 0% Tactical HUD 1 Map Filters NONE Filters NONE Steam 1 RUN: 889bfc44-0246-44e7-807c-efa08e0b3d40